Cogmind - Beta 14 @@@ ROGUE MODE // 2024.08.22 @ 19:16:35 Player: Spoodle Result: Destroyed by S-43 Plague with Heavy Machine Gun Performance ------------- Evolutions (8) 4000 Regions Visited (31) 6200 Robots Destroyed (396) 1980 Value Destroyed (15746) 15746 Prototype IDs (70) 1400 Alien Tech Used (1) 200 Bonus (9276) 9276 TOTAL SCORE: 38802 Bonus ------- High Alert Combat Kills 3544 Follower Combat Kills 4884 Network Hubs Disabled 200 Met Data Miner 300 Met Imprinter 300 Was Imprinted 300 Met Warlord at Base 500 MAIN.C Attacked Warlord 500 Warlord Defense Kills 148 Built Enhanced Grunts 300 Met R17 at Cetus 500 Friendly Fire -2200 Cogmind --------- Core Integrity 0/1450 Matter 106/300 Energy 39/100 System Corruption 27% Temperature Cool (0) Movement Core (200) Ox3 Location -2/Research Parts ------- > --- POWER (3) -------- (None) > --- PROPULSION (4) --- (None) > --- UTILITY (14) ----- Advanced Visual Processing Unit Advanced Signal Interpreter Experimental Core Analyzer Graphene Brace (fused) > --- WEAPON (3) ------- Smartbomb Launcher > --- INVENTORY (5) ---- Advanced Myomer Leg Centrium Leg Large Storage Unit Zionite Biocell (600) Heavy Dispersion Rifle Peak State ------------ > --- POWER ------------ Light Antimatter Reactor Light Antimatter Reactor Quantum Reactor > --- PROPULSION ------- Advanced Myomer Leg Zionite Composite Leg II Enhanced Biometal Leg Centrium Leg > --- UTILITY ---------- Advanced Power Amplifier Advanced Heat Sink Advanced Heat Sink Advanced Heat Sink Advanced Visual Processing Unit Advanced Signal Interpreter Experimental Targeting Computer Experimental Core Analyzer Zionite Light Carapace SHELL Armor Graphene Brace Advanced Force Field > --- WEAPON ----------- Heavy Laser Zionite Phaser-M Zionite Phaser-M > --- INVENTORY -------- Advanced Heat Sink Large Storage Unit Zionite Biocell Antimissile System Heavy Dispersion Rifle [Rating: 178] Favorites ----------- Power Improved Deuterium Engine Engine Improved Deuterium Engine Power Core Nuclear Core Reactor Vortex Chain Reactor Propulsion Flexi-carbon Leg Treads Light Treads Leg Flexi-carbon Leg Wheel Wheel Utility Large Storage Unit Device Improved Sensor Array Storage Large Storage Unit Processor Advanced Signal Interpreter Hackware System Shield Protection Zionite Weapon Casing Weapon Zionite Phaser-S Energy Gun Zionite Phaser-S Energy Cannon Beam Cannon Ballistic Gun Assault Rifle Ballistic Cannon Improved Light Cannon Launcher Improved Grenade Launcher Special Weapon Mining Laser Slashing Weapon Chainsword Build | -11 -10 -10 -9 -9 -9 -8 -8 -8 -7 -7 -7 -7 -6 -6 -6 -6 -6 -5 -5 -5 -5 -5 -4 -4 -4 -4 -4 -4 -3 -3 -2 ------- Run | Yrd Mat Min Mat Min Exi Min Mat Sto Fac Low Low Zio Pro Fac Low Low Dat Pro Fac Upp Upp War Pro Fac Ext Cet Arc Hub Res Tes Res Slots Evolved 16 | . . . 2 . . . 2 . 2 . . . . 2 . . . . 2 . . . . 2 . . . . 2 . 2 Power 1 | . . . . . . . . . 1 . . . . . . . . . . . . . . . . . . . . . . Propulsion 2 | . . . 1 . . . . . . . . . . 1 . . . . . . . . . . . . . . . . . Utility 12 | . . . 1 . . . 2 . 1 . . . . 1 . . . . 2 . . . . 2 . . . . 2 . 1 Weapon 1 | . . . . . . . . . . . . . . . . . . . . . . . . . . . . . . . 1 Parts Attached 656 | 7 15 7 59 6 1 7 34 39 64 13 5 5 5 15 24 6 2 8 65 19 9 25 9 22 23 2 2 8 59 50 41 Power 34 | 1 1 . 2 . . . 1 1 4 1 . . . 1 2 . . . 4 . . 3 . 1 . . . 1 2 6 3 Engine 15 | 1 1 . 2 . . . 1 1 2 1 . . . 1 1 . . . . . . . . 1 . . . 1 1 1 . Core 7 | . . . . . . . . . 2 . . . . . . . . . 4 . . 1 . . . . . . . . . Reactor 12 | . . . . . . . . . . . . . . . 1 . . . . . . 2 . . . . . . 1 5 3 Propulsion 93 | 2 4 3 14 . . 2 2 7 5 1 2 1 . 5 2 . . . 9 . 2 6 . 2 4 . . 2 7 7 4 Treads 17 | . 3 1 11 . . . . . . . . . . . . . . . . . . . . . . . . . . . 2 Leg 73 | 2 . . 3 . . 2 2 7 5 1 2 1 . 5 2 . . . 9 . 2 6 . 2 4 . . 2 7 7 2 Wheel 3 | . 1 2 . . . . . . . . . . . . . . . . . . . . . . . . . . . . . Hover . | . . . . . . . . . . . . . . . . . . . . . . . . . . . . . . . . Flight . | . . . . . . . . . . . . . . . . . . . . . . . . . . . . . . . . Utility 346 | 2 1 . 22 2 1 3 15 15 37 5 . 2 4 8 15 6 . 6 44 19 5 14 7 15 11 2 2 5 35 24 19 Device 248 | 1 . . 8 1 . 1 9 10 26 3 . 2 3 4 10 6 . 4 38 14 5 8 7 13 8 2 1 4 30 14 16 Storage 7 | 1 1 . . . 1 . . . 1 . . . . . . . . . 1 . . 1 . . . . . . . . 1 Processor 12 | . . . . . . 1 . . 3 . . . . 1 . . . 1 . 1 . 2 . 1 . . . . . 2 . Hackware 2 | . . . . . . . 1 . 1 . . . . . . . . . . . . . . . . . . . . . . Protection 77 | . . . 14 1 . 1 5 5 6 2 . . 1 3 5 . . 1 5 4 . 3 . 1 3 . 1 1 5 8 2 Artifact . | . . . . . . . . . . . . . . . . . . . . . . . . . . . . . . . . Weapon 183 | 2 9 4 21 4 . 2 16 16 18 6 3 2 1 1 5 . 2 2 8 . 2 2 2 4 8 . . . 15 13 15 Energy Gun 104 | . . . 4 2 . 2 13 12 11 2 2 1 1 . 3 . 2 1 4 . 1 2 1 3 4 . . . 11 11 11 Energy Cannon 12 | . 1 . 8 . . . 1 . . . . . . 1 1 . . . . . . . . . . . . . . . . Ballistic Gun 9 | 2 4 2 1 . . . . . . . . . . . . . . . . . . . . . . . . . . . . Ballistic Cannon 4 | . . . 4 . . . . . . . . . . . . . . . . . . . . . . . . . . . . Launcher 39 | . 3 2 4 2 . . . 2 . 3 . 1 . . 1 . . 1 4 . 1 . 1 1 3 . . . 4 2 4 Special Weapon 1 | . 1 . . . . . . . . . . . . . . . . . . . . . . . . . . . . . . Impact Weapon . | . . . . . . . . . . . . . . . . . . . . . . . . . . . . . . . . Slashing Weapon 14 | . . . . . . . 2 2 7 1 1 . . . . . . . . . . . . . 1 . . . . . . Piercing Weapon . | . . . . . . . . . . . . . . . . . . . . . . . . . . . . . . . . Special Melee Weapon . | . . . . . . . . . . . . . . . . . . . . . . . . . . . . . . . . Unidentified Prototypes 42 | . . . 3 . . . 2 2 2 . . 1 . 1 6 . . . 2 1 . 8 . . 1 . . 1 7 4 1 Corrupted Parts 2 | . . . . . . 1 . . . . . . . . . . . . . . . . . . . . . . 1 . . System Corruption 4 | . . . . . . 1 . . . . . . . . . . . . . . . . . . . . . . 3 . . Parts Lost 78 | . 2 1 3 . . . 3 7 3 1 1 . 1 . . . . 1 3 . . . . . . . . . 4 25 23 Power 13 | . 1 . 1 . . . 1 1 . 1 . . . . . . . . 1 . . . . . . . . . . 3 4 Propulsion 12 | . . 1 . . . . . 4 . . . . . . . . . . 1 . . . . . . . . . . 4 2 Utility 37 | . . . 1 . . . 1 1 2 . . . 1 . . . . 1 1 . . . . . . . . . 2 15 12 Weapon 16 | . 1 . 1 . . . 1 1 1 . 1 . . . . . . . . . . . . . . . . . 2 3 5 Highest Loss Streak 14 | . 1 1 1 . . . 3 5 1 1 1 . 1 . . . . 1 1 . . . . . . . . . 2 11 14 To Critical Strikes . | . . . . . . . . . . . . . . . . . . . . . . . . . . . . . . . . Average Slot Usage (%) 95 | . 99 100 99 100 100 99 99 99 99 99 99 100 100 100 99 100 87 100 93 89 88 86 83 85 89 90 90 90 89 87 83 Engine 7 | . 13 14 11 11 11 11 8 8 12 6 7 7 7 7 12 13 13 13 4 . . . . . 5 5 5 5 . . 1 Core 2 | . . . . . . . . . 2 7 7 7 7 4 . . . . 6 11 11 7 . . . . . . . . . Reactor 1 | . . . . . . . . . . . . . . . . . . . . . . 2 5 5 5 5 5 5 7 8 9 Treads 2 | . 14 14 32 . . . . . . . . . . . . . . . . . . . . . . . . . . . . Leg 20 | . 6 . . 33 33 33 27 26 23 23 23 23 23 26 26 26 26 26 23 22 22 22 22 20 20 20 20 20 18 17 14 Device 16 | . 14 14 10 11 11 10 9 14 20 18 15 15 21 25 15 13 13 15 17 11 11 11 16 20 20 20 20 18 25 25 22 Storage 6 | . 14 14 11 11 11 11 9 9 7 7 7 7 7 6 6 6 6 6 5 5 5 5 5 5 5 5 5 5 4 2 . Processor 9 | . . . . . . . 9 3 8 15 15 15 7 6 6 6 6 8 11 11 11 11 11 15 15 15 15 15 13 15 18 Hackware 1 | . . . . . . . 8 9 5 . . . . . . . . . . . . . . . . . . . . . . Protection 9 | . . . 11 11 11 11 8 9 2 3 7 7 7 6 17 20 20 15 10 15 16 16 11 9 9 10 9 11 9 6 4 Energy Gun 9 | . . . 1 21 22 21 17 17 11 12 5 7 3 3 9 13 1 11 10 11 10 10 9 9 9 10 10 10 8 8 9 Energy Cannon 1 | . 9 14 10 . . . . . . . . . . 2 2 . . . . . . . . . . . . . . . . Ballistic Gun 1 | . 16 13 1 . . . . . . . . . . . . . . . . . . . . . . . . . . . . Slashing Weapon 1 | . . . . . . . . . 2 2 7 7 7 6 . . . . . . . . . . . . . . . . . Peak Build Rating 178 | 7 8 8 27 29 29 32 41 44 55 54 50 55 53 72 83 79 76 81 96 90 89 120 117 138 142 142 142 140 167 170 178 Average Rating 72 | 5 7 7 15 28 29 28 38 40 48 52 47 51 52 66 73 76 64 76 89 87 86 100 114 132 136 140 141 137 157 153 163 On Entrance 73 | . 7 8 8 27 29 29 32 40 42 55 46 47 51 53 67 76 76 76 77 90 87 89 113 116 138 141 142 142 133 166 148 Naked Turns . | . . . . . . . . . . . . . . . . . . . . . . . . . . . . . . . . Heaviest Build 134 | 12 51 52 68 66 66 66 75 77 74 59 57 60 62 76 74 67 67 67 85 85 86 114 99 101 102 102 103 104 124 134 114 Greatest Support 140 | 20 40 16 60 45 45 47 47 54 58 58 58 60 60 78 80 76 76 76 84 84 84 104 100 104 110 105 105 108 118 118 140 Greatest Overweight (x) 5 | . 5 5 3 1 1 1 1 1 1 1 1 1 1 . . . . . 1 1 1 1 . . 1 . . . 1 1 1 Average Overweight (x) . | . 2 4 . 1 1 1 1 1 . . . . . . . . . . . . . . . . . . . . . . . Largest Inventory Capacity 20 | 8 20 20 20 20 20 20 20 20 20 15 15 15 15 15 15 15 15 15 15 15 15 15 15 15 15 15 15 15 15 15 15 Average Capacity 15 | 7 17 20 20 20 20 20 20 20 15 15 15 15 15 15 15 15 15 15 15 15 15 15 15 15 15 15 15 15 15 11 5 Most Carried 20 | 7 15 17 20 20 20 20 20 20 18 15 15 15 15 15 15 15 15 15 15 15 15 15 15 15 15 15 15 15 15 15 8 Average Carried 15 | 4 10 14 19 19 20 20 19 18 14 14 15 14 14 14 14 15 15 14 14 14 14 14 15 14 14 14 15 15 14 10 5 Final Capacity 20 | 8 20 20 20 20 20 20 20 20 15 15 15 15 15 15 15 15 15 15 15 15 15 15 15 15 15 15 15 15 15 5 5 Final Carried 20 | 7 15 16 20 20 20 20 20 19 14 15 15 15 15 15 15 15 15 15 13 15 15 15 15 15 15 15 15 15 15 5 5 Class Distribution -------------------- 37% | Mutant 36% | Messiah-Mutant 9% | Scavenger-Mutant 6% | Assassin 3% | Skirmisher 3% | Scavenger-Assassin Dominant Class ---------------- Mutant | -10/Materials Mutant | -10/Mines Scavenger-Mutant | -9/Materials Mutant | -9/Mines Mutant | -9/Exiles Mutant | -8/Mines Mutant | -8/Materials Mutant | -8/Storage Mutant | -7/Factory Skirmisher | -7/Lower Caves Scavenger-Assassin | -7/Lower Caves Assassin | -7/Zion Mutant | -6/Proximity Caves Mutant | -6/Factory Messiah-Mutant | -6/Lower Caves Messiah-Mutant | -6/Lower Caves Mutant | -6/Data Miner Messiah-Mutant | -5/Proximity Caves Messiah-Mutant | -5/Factory Messiah-Mutant | -5/Upper Caves Messiah-Mutant | -5/Upper Caves Messiah-Mutant | -5/Warlord Messiah-Mutant | -4/Proximity Caves Messiah-Mutant | -4/Factory Messiah-Mutant | -4/Extension Messiah-Mutant | -4/Cetus Messiah-Mutant | -4/Archives Messiah-Mutant | -4/Hub_04(d) Scavenger-Mutant | -3/Research Scavenger-Mutant | -3/Testing Scavenger-Gunner | -2/Research Resources | -11 -10 -10 -9 -9 -9 -8 -8 -8 -7 -7 -7 -7 -6 -6 -6 -6 -6 -5 -5 -5 -5 -5 -4 -4 -4 -4 -4 -4 -3 -3 -2 ----------- Run | Yrd Mat Min Mat Min Exi Min Mat Sto Fac Low Low Zio Pro Fac Low Low Dat Pro Fac Upp Upp War Pro Fac Ext Cet Arc Hub Res Tes Res Matter Collected 8721 | 344 303 179 916 90 10 30 447 480 640 160 80 40 138 184 256 92 . 167 660 303 222 260 155 223 248 105 30 70 855 623 411 Remotely . | . . . . . . . . . . . . . . . . . . . . . . . . . . . . . . . . Salvage Created 16015 | 165 417 404 1304 260 . . 1054 1924 1222 106 55 . 90 677 54 185 . 363 1094 329 183 45 244 445 629 66 36 296 1298 1194 1876 Parts 809 | 15 37 24 92 18 . . 57 84 48 7 2 . 6 27 3 6 . 14 64 9 11 . 13 17 41 4 1 17 55 50 87 Haulers Intercepted 10 | . 2 . 3 . . . 2 3 . . . . . . . . . . . . . . . . . . . . . . . Recyclers Shooed 12 | 1 . . 3 . . . 1 1 1 . . . . 1 . . . . . . . . . . . . . . . . 4 Parts Field Recycled . | . . . . . . . . . . . . . . . . . . . . . . . . . . . . . . . . Retrieved Matter . | . . . . . . . . . . . . . . . . . . . . . . . . . . . . . . . . Parts Self-Destructed 74 | . . . . . . . . . . 7 1 . 4 . 14 8 . 12 . 6 13 . 9 . . . . . . . . Prevented 1 | . . . . . . . . . . . . . 1 . . . . . . . . . . . . . . . . . . Kills | -11 -10 -10 -9 -9 -9 -8 -8 -8 -7 -7 -7 -7 -6 -6 -6 -6 -6 -5 -5 -5 -5 -5 -4 -4 -4 -4 -4 -4 -3 -3 -2 ------- Run | Yrd Mat Min Mat Min Exi Min Mat Sto Fac Low Low Zio Pro Fac Low Low Dat Pro Fac Upp Upp War Pro Fac Ext Cet Arc Hub Res Tes Res Combat Hostiles Destroyed 296 | . 11 7 34 11 . . 17 30 22 6 1 . 3 3 1 4 . 12 26 4 5 1 5 6 7 1 . . 24 24 31 Melee 3 | . . . . . . . . . 1 . 1 . . . . . . . . . . . . . . . . . . 1 . Guns 174 | . 3 . 2 5 . . 17 26 19 1 . . . 3 1 3 . 6 15 4 3 1 3 4 7 1 . . 14 17 19 Cannons 29 | . 3 3 23 . . . . . . . . . . . . . . . . . . . . . . . . . . . . AOE 85 | . 5 4 9 6 . . . 3 . 5 . . 3 . . . . 6 11 . 2 . 2 2 . . . . 10 6 11 Classes Destroyed 23 | 3 4 1 2 1 . . 2 . 1 . . . 2 1 . . . . 1 1 . . 1 . . . . 1 2 . . Worker 15 | 1 3 . 1 . . . . 1 . . . . . 1 . . . . . . . . . . . . . 3 1 1 3 Builder 22 | . 2 . 1 . . . . 2 . . . . . 1 . . . . 1 . . . . . 2 . . 1 5 1 6 Tunneler 8 | 3 . 1 . . . . . . . . . . . 1 . . . . 1 . . . . . . . . . . . 2 Hauler 10 | . 2 . 3 . . . 2 3 . . . . . . . . . . . . . . . . . . . . . . . Recycler 17 | 1 1 3 1 . . . 1 3 . . . . . 3 . . . . . . . . . 1 . . . 1 . . 2 Mechanic 3 | . . . . . . . . . . . . . . 1 . . . . . . . . . . . . . . . 1 1 Operator 2 | . . . . . . . 1 . . . . . . . . . . . . . . . . . . . 1 . . . . Drone 6 | . . . . . . . . . . . . . 2 . . . . 2 . . . . 2 . . . . . . . . Watcher 19 | . 2 . 4 . . . 1 1 2 . . . . . . . . . 2 . . . . . 3 . . . 2 1 1 Swarmer 62 | . 11 3 10 6 . . . . . 3 . . . . . 2 . 5 15 . . . . 2 . . . . 1 . 4 Saboteur 3 | . . . . . . . . . . . . . . . . . . . . . . . . . . . . . 1 1 1 Grunt 123 | . . 4 13 3 . . 11 20 14 3 1 . . 3 1 1 . 5 3 3 2 . 1 3 3 . . . 11 7 11 Brawler 9 | . . . 1 . . . . 1 . . . . . . . . . . . 1 . 1 . . 1 . . . 2 1 1 Duelist 7 | . . . . 2 . . 2 . . . . . . . . . . . . . 1 . . . . . . . . 1 1 Protector 1 | . . . . . . . . . . . . . . . . . . . . . . . . . . . . . 1 . . Researcher 1 | . . . . . . . . . . . . . . . . . . . . 1 . . . . . . . . . . . Sentry 41 | . . . 10 . . . 3 11 3 . . . . . . 1 . . 3 . . . . 1 3 . . . 2 3 1 Specialist 5 | . . . . . . . . . . . . . . . . . . . 1 . . . . . . . . . 1 3 . Hunter 18 | . . . . . . . 1 . 2 . . . . . . . . . 4 . . . . . . . . . 4 4 3 Programmer 21 | . . . . . . . . . 3 . . . . . . . . . . . 2 . 2 . . . . . 1 4 9 Behemoth 1 | . . . . . . . . . . . . . 1 . . . . . . . . . . . . . . . . . . Cetus Guard 1 | . . . . . . . . . . . . . . . . . . . . . . . . . . 1 . . . . . Z-Courier 1 | . . . . . . . . . . . . . . . . . . . 1 . . . . . . . . . . . . Z-Heavy 1 | . . . . . . . . . . . . . . . . . . . . . . . . . . . . 1 . . . Samaritan 1 | . . . . . . . . . . . . . . . . . . . . . . . 1 . . . . . . . . Best Kill Streak 15 | 3 3 3 14 3 . . 4 11 3 3 1 . 2 4 1 2 . 5 5 3 3 1 3 2 3 1 1 3 10 13 15 Combat Bots Only 13 | . 3 3 13 3 . . 4 9 3 3 1 . 2 2 1 2 . 5 5 3 3 1 3 2 2 1 . . 9 11 8 Max Kills in Single Turn 4 | 1 3 3 2 3 . . 2 3 1 2 1 . 2 1 1 1 . 2 2 1 1 1 1 2 1 1 1 3 4 2 3 Gunslinging 1 | . . . . . . . . 1 . . . . . . . . . . . . . . . . . . . . . . 1 Exploded 3 | . 3 3 2 3 . . . 1 . 2 . . 2 . . . . 2 2 . 1 . 1 2 . . . . 3 2 2 Melee 1 | . . . . . . . . . 1 . 1 . . . . . . . . . . . . . . . . . . 1 . Uniques/NPCs Destroyed . | . . . . . . . . . . . . . . . . . . . . . . . . . . . . . . . . Combat | -11 -10 -10 -9 -9 -9 -8 -8 -8 -7 -7 -7 -7 -6 -6 -6 -6 -6 -5 -5 -5 -5 -5 -4 -4 -4 -4 -4 -4 -3 -3 -2 -------- Run | Yrd Mat Min Mat Min Exi Min Mat Sto Fac Low Low Zio Pro Fac Low Low Dat Pro Fac Upp Upp War Pro Fac Ext Cet Arc Hub Res Tes Res Hostile Shots Fired 2344 | . 58 17 139 22 . . 96 191 215 15 10 . 9 10 23 33 . 72 207 9 26 32 22 42 50 3 1 1 163 391 487 Missed 796 | . 19 4 45 6 . . 28 61 75 4 1 . 2 5 10 13 . 21 74 4 5 14 12 24 26 3 . 1 57 136 146 Damage Taken 24543 | . 442 203 1121 176 . . 1316 2135 1196 128 98 . 82 75 187 149 . 789 1875 46 227 225 129 225 328 28 16 100 1269 5123 6855 Core 3403 | . 44 24 135 21 . . 229 206 124 13 21 . 35 4 29 17 . 130 238 9 10 . 28 24 10 . . . 83 519 1450 Absorbed by Shields 6624 | . . . . . . . . . 556 51 37 . 28 48 88 139 . 195 816 47 176 69 95 132 266 30 5 64 1209 1120 1453 Redirected to Shielding 499 | . . . . . . . . . . . . . . . 59 6 . 95 139 9 16 32 9 . 29 14 . 17 74 . . Ignored by Resistances 155 | . . . 31 10 . . 11 22 . . . . . . . . . . . . . . . . . . . . . 81 . Regen/Repaired (Parts) 2114 | . . . . . . . . 222 . . . . . 84 . . . . . . . 486 . . . . . . . 328 994 Core Remaining (%) 69 | 100 . 72 . . . 61 . 20 . . . . 72 . . . . 78 . . . . 71 . . . . 97 . 53 . Volleys Fired 1054 | 9 51 16 90 15 . 2 72 86 76 16 1 . 6 15 11 12 . 27 83 42 23 11 18 36 35 6 2 9 87 97 100 Largest 3 | 2 2 2 2 2 . 2 2 2 2 2 1 . 1 1 2 2 . 2 2 2 2 2 2 2 2 2 2 2 2 2 3 Hottest 257 | 40 100 80 124 112 . 112 143 122 136 121 69 . 36 90 150 120 . 120 120 120 120 120 120 120 120 120 120 120 154 188 257 Shots Fired 1793 | 18 96 28 157 27 . 4 140 159 144 18 1 . 6 14 21 23 . 47 137 64 33 17 29 56 64 11 4 14 126 143 192 Gun 1493 | 18 53 12 13 24 . 4 137 151 144 11 1 . . 10 18 23 . 43 130 64 28 17 24 55 61 11 4 14 113 133 177 Cannon 198 | . 38 13 137 . . . 3 . . . . . . 4 3 . . . . . . . . . . . . . . . . Launcher 100 | . 3 3 7 3 . . . 8 . 7 . . 6 . . . . 4 7 . 5 . 5 1 3 . . . 13 10 15 Special 2 | . 2 . . . . . . . . . . . . . . . . . . . . . . . . . . . . . . Kinetic 155 | 18 53 12 72 . . . . . . . . . . . . . . . . . . . . . . . . . . . . Thermal 1142 | . 40 13 78 24 . 4 140 151 144 11 1 . . 14 13 10 . 22 54 22 9 6 11 20 29 5 2 5 36 133 145 Explosive 100 | . 3 3 7 3 . . . 8 . 7 . . 6 . . . . 4 7 . 5 . 5 1 3 . . . 13 10 15 Electromagnetic . | . . . . . . . . . . . . . . . . . . . . . . . . . . . . . . . . Phasic 396 | . . . . . . . . . . . . . . . 8 13 . 21 76 42 19 11 13 35 32 6 2 9 77 . 32 Robot Hit Streak 19 | 11 6 6 18 9 . . 19 12 12 7 . . 4 5 3 7 . 11 16 12 7 5 7 8 19 12 5 7 15 12 18 Robot Miss Streak 5 | 1 4 4 4 3 . . 3 4 4 . 1 . 1 2 1 3 . 3 3 4 1 2 2 5 1 1 . 1 3 4 3 Penetration Max . | . . . . . . . . . . . . . . . . . . . . . . . . . . . . . . . . Secondary Targets 26 | . . . . 1 . . . 6 3 . . . . . . 2 . 1 1 . 1 . 1 . 1 . . . 2 2 5 Max Gunslinging Chain 1 | . . . . 1 . . . 1 1 . . . . . . 1 . 1 1 . 1 . 1 . 1 . . . 1 1 1 Shots Hit Robots 1124 | 13 53 18 111 16 . . 95 108 104 3 5 . 5 15 6 13 . 32 84 29 9 8 16 30 38 10 4 7 86 82 124 Core Hits 726 | 7 23 15 50 11 . . 43 70 45 13 1 . 7 10 2 8 . 17 50 10 14 1 8 18 25 4 2 13 79 72 108 Critical Kills 11 | . . . . . . . . . . . . . . 1 . . . . . . . . . . . . . . . 5 5 Critical Parts Destroyed 18 | . . . . . . . . . . . . . . . . . . . . . . . . . . . . . . 5 13 Critical Strikes 82 | . . . 4 2 . . 3 9 9 . 1 . . 2 . . . . 4 1 1 . 2 1 1 . . . 2 14 26 Burn 30 | . . . . 2 . . 3 9 7 . . . . 1 . . . . . . . . . . . . . . . 4 4 Meltdown 1 | . . . . . . . . . . . . . . 1 . . . . . . . . . . . . . . . . . Destroy 29 | . . . . . . . . . . . . . . . . . . . . . . . . . . . . . . 10 19 Blast 4 | . . . 4 . . . . . . . . . . . . . . . . . . . . . . . . . . . . Sever 3 | . . . . . . . . . 2 . 1 . . . . . . . . . . . . . . . . . . . . Intensify 15 | . . . . . . . . . . . . . . . . . . . 4 1 1 . 2 1 1 . . . 2 . 3 Melee Attacks 61 | . . . . . . . 8 4 21 9 7 . . 12 . . . . . . . . . . . . . . . . . Impact . | . . . . . . . . . . . . . . . . . . . . . . . . . . . . . . . . Slashing 61 | . . . . . . . 8 4 21 9 7 . . 12 . . . . . . . . . . . . . . . . . Piercing . | . . . . . . . . . . . . . . . . . . . . . . . . . . . . . . . . Sneak Attacks 8 | . . . . . . . . 1 1 . . . . 6 . . . . . . . . . . . . . . . . . Combat Hostiles . | . . . . . . . . . . . . . . . . . . . . . . . . . . . . . . . . Follow-up Attacks . | . . . . . . . . . . . . . . . . . . . . . . . . . . . . . . . . Damage Inflicted 46162 | 147 1114 575 2843 692 . . 1723 3051 2376 586 160 . 498 749 199 388 . 1386 3693 842 728 254 719 1293 1277 306 125 874 6612 5111 7841 Guns 25291 | 147 332 93 154 286 . . 1646 2013 2176 39 . . . 140 158 388 . 959 2764 842 301 254 486 996 1242 306 125 235 3075 2651 3483 Cannons 2881 | . 426 179 2122 . . . 44 . . . . . . 69 41 . . . . . . . . . . . . . . . . Explosions 16825 | . 351 303 544 374 . . . 918 . 547 . . 498 . . . . 426 918 . 427 . 233 297 35 . . 639 3529 2460 4326 Melee 885 | . . . . . . . . 61 200 . 160 . . 464 . . . . . . . . . . . . . . . . . Ramming 280 | . 5 . 23 32 . . 33 59 . . . . . 76 . . . 1 11 . . . . . . . . . 8 . 32 Kinetic 1678 | 147 332 93 1106 . . . . . . . . . . . . . . . . . . . . . . . . . . . . Thermal 18526 | . 426 256 1170 286 . . 1690 2013 2176 39 . . . 209 160 223 . 398 1119 380 169 122 288 393 495 141 59 61 809 2651 2793 Explosive 16109 | . 351 226 544 374 . . . 918 . 547 . . 498 . . . . 426 918 . 427 . 233 297 35 . . . 3529 2460 4326 Electromagnetic 639 | . . . . . . . . . . . . . . . . . . . . . . . . . . . . 639 . . . Impact . | . . . . . . . . . . . . . . . . . . . . . . . . . . . . . . . . Slashing 885 | . . . . . . . . 61 200 . 160 . . 464 . . . . . . . . . . . . . . . . . Piercing . | . . . . . . . . . . . . . . . . . . . . . . . . . . . . . . . . Phasic 8045 | . . . . . . . . . . . . . . . 39 165 . 561 1645 462 132 132 198 603 747 165 66 174 2266 . 690 Highest Corruption 27 | . 3 3 . . . 1 2 2 . . . . . 2 2 2 2 2 2 2 6 6 1 . 1 1 1 2 9 21 27 Average Corruption 3 | . 2 3 . . . 1 2 2 . . . . . 2 2 2 2 2 1 2 5 6 1 . 1 1 1 2 6 15 17 Corruption Purged 1 | . . . . . . . . . . . . . . . . . . . . . . . . . . . 1 . . . . Corruption Blocked . | . . . . . . . . . . . . . . . . . . . . . . . . . . . . . . . . Effects 302 | . 2 16 . . . 1 26 16 . . . . . 13 22 9 2 15 8 9 32 1 3 . 10 4 . . 33 44 36 Message Errors 53 | . . 5 . . . . 8 2 . . . . . 2 5 1 . 7 2 1 5 . . . 2 . . . 7 4 2 Matter Fused 83 | . . 5 . . . . 11 7 . . . . . 4 4 2 1 2 2 4 10 . . . 5 3 . . 7 8 8 Heat Flow Errors 38 | . 1 3 . . . . 1 1 . . . . . 1 5 1 . 1 1 . 5 . . . 1 . . . 4 6 7 Energy Discharges 31 | . 1 2 . . . . 2 2 . . . . . 3 4 2 . . 2 . 4 1 2 . 1 . . . 2 3 . Parts Rejected 7 | . . . . . . . 1 . . . . . . . . . . . . . . . . . . . . . . 3 3 Parts Fused 5 | . . . . . . . . . . . . . . . . . 1 . . . . . . . . . . . 2 1 1 Data Loss (minor) 32 | . . 1 . . . 1 2 1 . . . . . . 2 1 . 4 . 3 2 . . . 1 1 . . 5 5 3 Data Loss (major) 14 | . . . . . . . . 1 . . . . . 1 2 1 . . . 1 1 . . . . . . . 3 2 2 Misfires 14 | . . . . . . . 1 1 . . . . . . . 1 . . 1 . 4 . 1 . . . . . 3 1 1 Alerts 5 | . . . . . . . . 1 . . . . . 1 . . . . . . 1 . . . . . . . . 2 . Misdirections 3 | . . . . . . . . . . . . . . . . . . . . . . . . . . . . . . . 3 Weapon Failures 17 | . . . . . . . . . . . . . . 1 . . . 1 . . . . . . . . . . . 9 6 Overload Shots 32 | . . . . . . . . . 12 8 . . . . 1 . . . . . . . . . . . . . 1 10 . Effects 2 | . . . . . . . . . 1 . . . . . . . . . . . . . . . . . . . . 1 . Energy Bleed 1 | . . . . . . . . . . . . . . . . . . . . . . . . . . . . . . 1 . Heat Surge 1 | . . . . . . . . . 1 . . . . . . . . . . . . . . . . . . . . . . Overflow Damage 735 | . 90 10 52 29 . . . 4 50 6 27 . . 86 . . . 60 47 . . . 38 3 . . . 24 28 97 84 Projectiles 46 | . 27 . 19 . . . . . . . . . . . . . . . . . . . . . . . . . . . . Explosions 522 | . 63 10 33 29 . . . . . 6 . . . . . . . 60 47 . . . 38 3 . . . 24 28 97 84 Melee 167 | . . . . . . . . 4 50 . 27 . . 86 . . . . . . . . . . . . . . . . . Knockbacks 9 | . . . 7 . . . 1 . . . . . . 1 . . . . . . . . . . . . . . . . . Impact 2 | . . . . . . . 1 . . . . . . 1 . . . . . . . . . . . . . . . . . Kinetic 5 | . . . 5 . . . . . . . . . . . . . . . . . . . . . . . . . . . . Secondary 2 | . . . 2 . . . . . . . . . . . . . . . . . . . . . . . . . . . . Self-Inflicted Damage 918 | . 130 36 35 7 . . . 100 . 5 . . 50 . . . . 20 15 . . . 37 . . . . 93 40 334 16 Shots 22 | . 2 1 2 1 . . . 2 . 1 . . 1 . . . . 1 1 . . . 1 . . . . 1 1 5 2 Rammed 6 | . . . 4 . . . . . . . . . . . . . . . . . . . . . . . . . . . 2 Targets Rammed 39 | . 3 . 4 5 . . 7 8 . . . . . 3 . . . 1 2 . . . . . . . . . 2 . 4 Kicked 33 | . 3 . . 5 . . 7 8 . . . . . 3 . . . 1 2 . . . . . . . . . 2 . 2 Crushed . | . . . . . . . . . . . . . . . . . . . . . . . . . . . . . . . . Highest Temperature 425 | . 90 173 250 192 . 102 144 216 234 100 44 . 226 112 360 267 . 274 425 234 239 96 66 237 180 . . 120 360 285 328 Average Temperature 70 | . 29 47 78 57 . 52 35 65 81 44 19 . 95 35 115 74 . 59 74 83 74 47 29 66 40 . . 46 84 67 105 Received Heat Transfer 4648 | . . 84 399 60 . . 522 1179 504 48 68 . 239 8 18 63 . 229 110 20 32 16 . 48 69 . . 9 130 405 388 Effects 15 | . . . 2 . . . . 4 3 . . . . . 1 . . . 2 . . . . . . . . . . . 3 Shutdowns 3 | . . . . . . . . . . . . . . . 1 . . . 1 . . . . . . . . . . . 1 Energy Bleed 3 | . . . . . . . . . . . . . . . . . . . 1 . . . . . . . . . . . 2 Interference 9 | . . . 2 . . . . 4 3 . . . . . . . . . . . . . . . . . . . . . . Siege Activations . | . . . . . . . . . . . . . . . . . . . . . . . . . . . . . . . . Robots Corrupted 3 | . . . . . . . . 1 . . . . . 1 . . . . . . . . . . . . . 1 . . . Combat Hostiles . | . . . . . . . . . . . . . . . . . . . . . . . . . . . . . . . . Parts Fried 5 | . . . . . . . . 2 . . . . 1 1 . . . . . . . . . . . . . 1 . . . Impact Corruptions 2 | . . . . . . . . 1 . . . . . 1 . . . . . . . . . . . . . . . . . Robots Melted 6 | . . . . . . . . 1 2 . . . . 1 . 1 . . . . . . . . . . . . . . 1 Combat Hostiles 5 | . . . . . . . . 1 2 . . . . . . 1 . . . . . . . . . . . . . . 1 Parts Melted 75 | . 1 . 1 1 . . 9 18 14 . . . . 1 . 2 . . 1 . 1 . 3 2 1 . . . 1 5 14 Heat Transferred 30815 | . 888 470 2294 740 . . 3774 4441 4296 74 . . . 433 223 296 . 518 1369 555 185 148 333 472 629 185 74 74 890 3421 4033 Parts Sabotaged 1 | . . . . . . . . . . . . . . . . . . . . . . . . . . . . . . 1 . Parts Stolen . | . . . . . . . . . . . . . . . . . . . . . . . . . . . . . . . . Parts Stripped . | . . . . . . . . . . . . . . . . . . . . . . . . . . . . . . . . Power Chain Reactions . | . . . . . . . . . . . . . . . . . . . . . . . . . . . . . . . . Alert | -11 -10 -10 -9 -9 -9 -8 -8 -8 -7 -7 -7 -7 -6 -6 -6 -6 -6 -5 -5 -5 -5 -5 -4 -4 -4 -4 -4 -4 -3 -3 -2 ------- Run | Yrd Mat Min Mat Min Exi Min Mat Sto Fac Low Low Zio Pro Fac Low Low Dat Pro Fac Upp Upp War Pro Fac Ext Cet Arc Hub Res Tes Res Peak Influence 1782 | 25 245 158 606 357 . . 254 603 337 . . . . 420 . . . . 768 . . . . 448 633 618 386 745 1782 1416 1412 Initial 1002 | . 16 9 2 177 . . . 66 211 . . . . . . . . . 450 . . . . 150 219 325 167 135 390 1002 711 Average 351 | 9 112 71 310 227 . . 115 388 202 . . . . 182 . . . . 416 . . . . 211 371 430 330 333 902 1212 816 Maximum Alert Level 5 | . 1 . 2 1 . . 1 2 1 . . . . 2 . . . . 3 . . . . 2 2 2 1 3 5 4 4 Low Security (%) 39 | 100 89 100 32 49 . 100 82 15 44 . . . . 55 . . . . . . . . . 52 . . 14 7 . . . Level 1 29 | . 10 . 22 50 . . 17 35 55 . . . . 40 . . . . 54 . . . . 39 63 18 85 61 4 . . Level 2 17 | . . . 45 . . . . 49 . . . . . 4 . . . . 39 . . . . 7 36 81 . 24 36 . 13 Level 3 8 | . . . . . . . . . . . . . . . . . . . 5 . . . . . . . . 6 26 32 72 Level 4 4 | . . . . . . . . . . . . . . . . . . . . . . . . . . . . . 14 67 14 Level 5 . | . . . . . . . . . . . . . . . . . . . . . . . . . . . . . 17 . . High Security . | . . . . . . . . . . . . . . . . . . . . . . . . . . . . . . . . Max Security . | . . . . . . . . . . . . . . . . . . . . . . . . . . . . . . . . Squads Dispatched 62 | . . . 2 . . . 1 7 10 . . . . 3 . . . . 3 . . . . 2 . . . 2 13 5 14 Investigation 8 | . . . . . . . . 1 3 . . . . 1 . . . . . . . . . . . . . . . . 3 Extermination 12 | . . . . . . . . . 3 . . . . 2 . . . . 1 . . . . 1 . . . . 2 1 2 Reinforcement 21 | . . . 2 . . . 1 4 1 . . . . . . . . . 2 . . . . 1 . . . . 5 2 3 Assault 13 | . . . . . . . . 2 . . . . . . . . . . . . . . . . . . . 2 3 2 4 Garrison 8 | . . . . . . . . . 3 . . . . . . . . . . . . . . . . . . . 3 . 2 Intercept . | . . . . . . . . . . . . . . . . . . . . . . . . . . . . . . . . Searches Triggered 1 | . . . . . . . . . . . . . . . . . . . 1 . . . . . . . . . . . . Construction Impeded 4 | . . . . . . . . 1 . . . . . . . . . . . . . . . . . . . . 2 . 1 Haulers Reinforced . | . . . . . . . . . . . . . . . . . . . . . . . . . . . . . . . . Active Scanning Responses . | . . . . . . . . . . . . . . . . . . . . . . . . . . . . . . . . Cargo Convoy Interrupts 1 | . . . . . . . . . . . . . . . . . . . 1 . . . . . . . . . . . . Stealth | -11 -10 -10 -9 -9 -9 -8 -8 -8 -7 -7 -7 -7 -6 -6 -6 -6 -6 -5 -5 -5 -5 -5 -4 -4 -4 -4 -4 -4 -3 -3 -2 --------- Run | Yrd Mat Min Mat Min Exi Min Mat Sto Fac Low Low Zio Pro Fac Low Low Dat Pro Fac Upp Upp War Pro Fac Ext Cet Arc Hub Res Tes Res Distress Signals 33 | . . . 5 . . . 2 4 2 . . . 1 1 . . . . 2 . . 1 . 1 . 2 . 2 6 . 4 Communications Jammed 65 | . . . . . . . . . . . . . 1 . . . . . . . . . 1 . . . 2 5 42 14 . Distress Signals 62 | . . . . . . . . . . . . . . . . . . . . . . . . . . . 2 4 42 14 . Times Spotted 559 | . 19 9 49 11 . . 32 50 32 5 1 . 1 21 7 8 . 10 42 6 6 25 5 21 24 8 4 6 52 35 70 Peak Tracking Total 19 | . 3 2 8 4 . . 6 10 5 3 1 . 1 3 2 4 . 5 5 9 3 8 3 6 4 5 2 5 7 8 19 Tactical Retreats 24 | . 1 1 3 1 . . 2 1 3 . . . . . . . . . 2 1 1 . . 2 3 . . . . . 3 Traps | -11 -10 -10 -9 -9 -9 -8 -8 -8 -7 -7 -7 -7 -6 -6 -6 -6 -6 -5 -5 -5 -5 -5 -4 -4 -4 -4 -4 -4 -3 -3 -2 ------- Run | Yrd Mat Min Mat Min Exi Min Mat Sto Fac Low Low Zio Pro Fac Low Low Dat Pro Fac Upp Upp War Pro Fac Ext Cet Arc Hub Res Tes Res Traps Triggered 18 | . 3 . 1 . . . 1 1 . . . . . 2 . . . . 3 . . . . 3 . . . 2 1 . 1 Indirectly 2 | . . . . . . . . . . . . . . . . . . . . . . . . . . . . 2 . . . Trap Hack Attempts . | . . . . . . . . . . . . . . . . . . . . . . . . . . . . . . . . Triggered . | . . . . . . . . . . . . . . . . . . . . . . . . . . . . . . . . Disarmed . | . . . . . . . . . . . . . . . . . . . . . . . . . . . . . . . . Reprogrammed . | . . . . . . . . . . . . . . . . . . . . . . . . . . . . . . . . Reused . | . . . . . . . . . . . . . . . . . . . . . . . . . . . . . . . . Traps Extracted . | . . . . . . . . . . . . . . . . . . . . . . . . . . . . . . . . Installed 12 | . . . . . . . . . . . . . . . . . . . . . . . . . . . . . 12 . . Triggered 10 | . . . . 1 . . . . . . 1 . . . . . . 1 . . . 7 . . . . . . . . . Machines | -11 -10 -10 -9 -9 -9 -8 -8 -8 -7 -7 -7 -7 -6 -6 -6 -6 -6 -5 -5 -5 -5 -5 -4 -4 -4 -4 -4 -4 -3 -3 -2 ---------- Run | Yrd Mat Min Mat Min Exi Min Mat Sto Fac Low Low Zio Pro Fac Low Low Dat Pro Fac Upp Upp War Pro Fac Ext Cet Arc Hub Res Tes Res Machines Disabled 30 | . 3 3 4 . . . 2 3 2 . . . . 1 . . . . . . . . . . . . 2 5 1 4 . Max in Single Turn 5 | . 1 1 2 . . . 1 1 2 . . . . . . . . . . . . . . . . . . 5 1 1 . Garrison Access 4 | . . . . . . . . . . . . . . 1 . . . . 1 . . . . . . . . 1 . . 1 Network Hub 1 | . . . . . . . . . . . . . . . . . . . . . . . . . . . . 1 . . . Machines Repaired . | . . . . . . . . . . . . . . . . . . . . . . . . . . . . . . . . Machines Dismantled . | . . . . . . . . . . . . . . . . . . . . . . . . . . . . . . . . Machines Sabotaged . | . . . . . . . . . . . . . . . . . . . . . . . . . . . . . . . . Overloaded Fab Kills . | . . . . . . . . . . . . . . . . . . . . . . . . . . . . . . . . Hacking | -11 -10 -10 -9 -9 -9 -8 -8 -8 -7 -7 -7 -7 -6 -6 -6 -6 -6 -5 -5 -5 -5 -5 -4 -4 -4 -4 -4 -4 -3 -3 -2 --------- Run | Yrd Mat Min Mat Min Exi Min Mat Sto Fac Low Low Zio Pro Fac Low Low Dat Pro Fac Upp Upp War Pro Fac Ext Cet Arc Hub Res Tes Res Machines Accessed 74 | . 8 1 7 1 1 . 9 5 14 . . . . 8 . . 4 . 5 1 1 . . 3 . 1 1 . 1 2 1 Terminals 41 | . 8 1 7 . . . 8 4 11 . . . . . . . . . . . . . . . . 1 . . . 1 . Fabricators 9 | . . . . . . . . . 2 . . . . 3 . . . . 2 . . . . 1 . . . . . 1 . Repair Stations 6 | . . . . . . . 1 1 . . . . . 3 . . . . 1 . . . . . . . . . . . . Recycling Units 3 | . . . . . . . . . 1 . . . . . . . . . 1 . . . . 1 . . . . . . . Scanalyzers . | . . . . . . . . . . . . . . . . . . . . . . . . . . . . . . . . Garrison Access 6 | . . . . . . . . . . . . . . 2 . . . . 1 . . . . 1 . . . . 1 . 1 Total Hacks 253 | . 29 2 19 1 1 . 31 21 58 . . . . 15 . . 31 . 7 1 1 . . 4 . 1 25 . 1 3 2 Successful 163 | . 18 1 9 1 1 . 18 10 29 . . . . 8 . . 31 . 5 1 1 . . 3 . . 25 . . 1 1 Failed 90 | . 11 1 10 . . . 13 11 29 . . . . 7 . . . . 2 . . . . 1 . 1 . . 1 2 1 Catastrophic 21 | . 1 . 3 . . . 3 2 8 . . . . 2 . . . . . . . . . 1 . . . . . 1 . Database Lockouts . | . . . . . . . . . . . . . . . . . . . . . . . . . . . . . . . . Manual 225 | . 15 2 15 . . . 20 7 30 . . . . 23 . . . . 28 . . 2 . 18 4 1 . 5 26 18 11 Terminals 141 | . 29 2 19 . . . 28 13 47 . . . . . . . . . . . . . . . . 1 . . . 2 . Fabricators 20 | . . . . . . . . . 8 . . . . 6 . . . . 3 . . . . 2 . . . . . 1 . Repair Stations 18 | . . . . . . . 3 8 . . . . . 5 . . . . 2 . . . . . . . . . . . . Recycling Units 5 | . . . . . . . . . 3 . . . . . . . . . 1 . . . . 1 . . . . . . . Scanalyzers . | . . . . . . . . . . . . . . . . . . . . . . . . . . . . . . . . Garrison Access 9 | . . . . . . . . . . . . . . 4 . . . . 1 . . . . 1 . . . . 1 . 2 Terminal Hacks 97 | . 9 . 4 1 1 . 6 5 12 . . . . . . . 31 . . 1 1 . . . . . 25 . . 1 . Record 37 | . . . . . 1 . . . . . . . . . . . 11 . . . . . . . . . 25 . . . . Part Schematic 14 | . . . . . . . . 1 3 . . . . . . . 10 . . . . . . . . . . . . . . Robot Schematic 7 | . . . . . . . . . . . . . . . . . 7 . . . . . . . . . . . . . . Robot Analysis 4 | . 4 . . . . . . . . . . . . . . . . . . . . . . . . . . . . . . Prototype ID Bank 6 | . 1 . . . . . 1 . 1 . . . . . . . 3 . . . . . . . . . . . . . . Open Door 5 | . . . . 1 . . . 1 . . . . . . . . . . . 1 1 . . . . . . . . 1 . Branch Access Points 1 | . . . . . . . 1 . . . . . . . . . . . . . . . . . . . . . . . . Terminal Index 1 | . . . . . . . . . 1 . . . . . . . . . . . . . . . . . . . . . . Alert Level 5 | . . . 1 . . . 2 1 1 . . . . . . . . . . . . . . . . . . . . . . Unreport Threat 4 | . . . 1 . . . . 1 2 . . . . . . . . . . . . . . . . . . . . . . Locate Traps 8 | . 3 . 2 . . . 2 1 . . . . . . . . . . . . . . . . . . . . . . . Patrol Status 2 | . 1 . . . . . . . 1 . . . . . . . . . . . . . . . . . . . . . . Zone Layout 3 | . . . . . . . . . 3 . . . . . . . . . . . . . . . . . . . . . . Fabricator Hacks 10 | . . . . . . . . . 5 . . . . 2 . . . . 2 . . . . 1 . . . . . . . Network Status 3 | . . . . . . . . . 1 . . . . . . . . . 1 . . . . 1 . . . . . . . Load Schematic 4 | . . . . . . . . . 2 . . . . 1 . . . . 1 . . . . . . . . . . . . Build 3 | . . . . . . . . . 2 . . . . 1 . . . . . . . . . . . . . . . . . Repair Station Hacks 8 | . . . . . . . . 5 . . . . . 3 . . . . . . . . . . . . . . . . . Scan Component 5 | . . . . . . . . 3 . . . . . 2 . . . . . . . . . . . . . . . . . Repair 3 | . . . . . . . . 2 . . . . . 1 . . . . . . . . . . . . . . . . . Recycling Unit Hacks . | . . . . . . . . . . . . . . . . . . . . . . . . . . . . . . . . Scanalyzer . | . . . . . . . . . . . . . . . . . . . . . . . . . . . . . . . . Garrison Access Hacks 3 | . . . . . . . . . . . . . . 1 . . . . 1 . . . . . . . . . . . 1 Seal Access 3 | . . . . . . . . . . . . . . 1 . . . . 1 . . . . . . . . . . . 1 Unauthorized Hacks 45 | . 9 1 5 . . . 12 . 12 . . . . 2 . . . . 2 . . . . 2 . . . . . . . Terminals 37 | . 9 1 5 . . . 12 . 10 . . . . . . . . . . . . . . . . . . . . . . Track 7 | . . 1 3 . . . 2 . 1 . . . . . . . . . . . . . . . . . . . . . . Assimilate 1 | . . . . . . . . . 1 . . . . . . . . . . . . . . . . . . . . . . Botnet 9 | . 2 . 2 . . . 2 . 3 . . . . . . . . . . . . . . . . . . . . . . Disrupt 1 | . . . . . . . 1 . . . . . . . . . . . . . . . . . . . . . . . . Operators 2 | . 1 . . . . . 1 . . . . . . . . . . . . . . . . . . . . . . . . Skim 17 | . 6 . . . . . 6 . 5 . . . . . . . . . . . . . . . . . . . . . . Fabricators 4 | . . . . . . . . . 1 . . . . 2 . . . . . . . . . 1 . . . . . . . Prioritize 2 | . . . . . . . . . 1 . . . . 1 . . . . . . . . . . . . . . . . . Liberate 1 | . . . . . . . . . . . . . . 1 . . . . . . . . . . . . . . . . . Haulers 1 | . . . . . . . . . . . . . . . . . . . . . . . . 1 . . . . . . . Repair Stations 1 | . . . . . . . . . . . . . . . . . . . 1 . . . . . . . . . . . . Mechanics 1 | . . . . . . . . . . . . . . . . . . . 1 . . . . . . . . . . . . Recycling Units 3 | . . . . . . . . . 1 . . . . . . . . . 1 . . . . 1 . . . . . . . Recyclers 3 | . . . . . . . . . 1 . . . . . . . . . 1 . . . . 1 . . . . . . . Scanalyzers . | . . . . . . . . . . . . . . . . . . . . . . . . . . . . . . . . Garrison Access . | . . . . . . . . . . . . . . . . . . . . . . . . . . . . . . . . Data Cores Recovered 1 | . . . . . . . 1 . . . . . . . . . . . . . . . . . . . . . . . . Used . | . . . . . . . . . . . . . . . . . . . . . . . . . . . . . . . . Hacking Detections 54 | . 6 1 7 . . . 8 3 14 . . . . 5 . . . . 3 . . . . 2 . 1 . . 1 2 1 Full Trace Events 5 | . 1 . . . . . . . 3 . . . . 1 . . . . . . . . . . . . . . . . . Feedback Events . | . . . . . . . . . . . . . . . . . . . . . . . . . . . . . . . . Feedback Blocked . | . . . . . . . . . . . . . . . . . . . . . . . . . . . . . . . . Robot Schematics Acquired 11 | . . . . . . . . . . . . 3 . . . . 7 . . . . . . . . . . . . 1 . Robots Built . | . . . . . . . . . . . . . . . . . . . . . . . . . . . . . . . . Authchips . | . . . . . . . . . . . . . . . . . . . . . . . . . . . . . . . . Time . | . . . . . . . . . . . . . . . . . . . . . . . . . . . . . . . . Total Robot Build Rating . | . . . . . . . . . . . . . . . . . . . . . . . . . . . . . . . . Part Schematics Acquired 69 | . . . . . . . . 1 3 . . 13 . . . . 10 . 13 . . . . . . . . . . 29 . Parts Built 4 | . . . . . . . . . 4 . . . . . . . . . . . . . . . . . . . . . . Authchips . | . . . . . . . . . . . . . . . . . . . . . . . . . . . . . . . . Time 124 | . . . . . . . . . 77 . . . . 47 . . . . . . . . . . . . . . . . . Total Part Build Rating 20 | . . . . . . . . . 20 . . . . . . . . . . . . . . . . . . . . . . Parts Repaired 3 | . . . . . . . . 2 . . . . . 1 . . . . . . . . . . . . . . . . . Time 175 | . . . . . . . . 105 . . . . . 70 . . . . . . . . . . . . . . . . . Parts Recycled . | . . . . . . . . . . . . . . . . . . . . . . . . . . . . . . . . Recycled Matter . | . . . . . . . . . . . . . . . . . . . . . . . . . . . . . . . . Retrieved Matter . | . . . . . . . . . . . . . . . . . . . . . . . . . . . . . . . . Retrieved Components . | . . . . . . . . . . . . . . . . . . . . . . . . . . . . . . . . Parts Scanalyzed . | . . . . . . . . . . . . . . . . . . . . . . . . . . . . . . . . Part Schematics Acquired . | . . . . . . . . . . . . . . . . . . . . . . . . . . . . . . . . Parts Damaged . | . . . . . . . . . . . . . . . . . . . . . . . . . . . . . . . . Bothacking | -11 -10 -10 -9 -9 -9 -8 -8 -8 -7 -7 -7 -7 -6 -6 -6 -6 -6 -5 -5 -5 -5 -5 -4 -4 -4 -4 -4 -4 -3 -3 -2 ------------ Run | Yrd Mat Min Mat Min Exi Min Mat Sto Fac Low Low Zio Pro Fac Low Low Dat Pro Fac Upp Upp War Pro Fac Ext Cet Arc Hub Res Tes Res Used RIF Installer . | . . . . . . . . . . . . . . . . . . . . . . . . . . . . . . . . Robots Hacked . | . . . . . . . . . . . . . . . . . . . . . . . . . . . . . . . . Non-combat . | . . . . . . . . . . . . . . . . . . . . . . . . . . . . . . . . Combat . | . . . . . . . . . . . . . . . . . . . . . . . . . . . . . . . . Robot Hacks Applied . | . . . . . . . . . . . . . . . . . . . . . . . . . . . . . . . . Relay Couplers Released 6 | . . . . . . . . . . . . . . . . . . . . . . . . . . . . 3 . . 3 Machine Destruction 3 | . . . . . . . . . . . . . . . . . . . . . . . . . . . . 3 . . . Programmers 3 | . . . . . . . . . . . . . . . . . . . . . . . . . . . . . . . 3 Fabnet Peak Effective % . | . . . . . . . . . . . . . . . . . . . . . . . . . . . . . . . . Robots Rewired 15 | . . . . . . . . . . . . . . . . . . . . . . . . . 15 . . . . . . Allies Hacked 1 | . . . . . . . . . . . . . . . . . . . . . . . . . . . . . 1 . . Hacks Repelled . | . . . . . . . . . . . . . . . . . . . . . . . . . . . . . . . . Allies | -11 -10 -10 -9 -9 -9 -8 -8 -8 -7 -7 -7 -7 -6 -6 -6 -6 -6 -5 -5 -5 -5 -5 -4 -4 -4 -4 -4 -4 -3 -3 -2 -------- Run | Yrd Mat Min Mat Min Exi Min Mat Sto Fac Low Low Zio Pro Fac Low Low Dat Pro Fac Upp Upp War Pro Fac Ext Cet Arc Hub Res Tes Res Total Allies 83 | . . 3 . . . . . 12 1 . . 4 . 12 . . . . 7 . . . . 3 19 5 . 2 13 . 2 Largest Group 12 | . . 3 . . . . . 10 1 . . 4 4 8 6 1 1 1 4 . . . . 3 10 12 5 7 7 1 1 Highest-Rated Group 885 | . . 40 . . . . . 173 10 . . 158 158 549 467 135 135 135 240 . . . . 272 522 885 480 679 414 103 32 Highest-Rated Ally 159 | . . 16 . . . . . 31 10 . . 42 42 135 135 135 135 135 70 . . . . 141 159 159 96 103 103 103 32 Zionite Dispatches 19 | . . . . . . . . . . . . . . 4 . . . . 3 . . . . 2 1 . . 1 6 . 2 Heavy 4 | . . . . . . . . . . . . . . 1 . . . . . . . . . . . . . 1 2 . . Light 3 | . . . . . . . . . . . . . . 1 . . . . 2 . . . . . . . . . . . . Recon 1 | . . . . . . . . . . . . . . . . . . . . . . . . . 1 . . . . . . Fire 1 | . . . . . . . . . . . . . . . . . . . . . . . . . . . . . 1 . . Hacker 1 | . . . . . . . . . . . . . . . . . . . . . . . . 1 . . . . . . . Demo 1 | . . . . . . . . . . . . . . . . . . . . . . . . . . . . . 1 . . Hero 2 | . . . . . . . . . . . . . . 1 . . . . . . . . . 1 . . . . . . . Thermal Resupply 1 | . . . . . . . . . . . . . . . . . . . . . . . . . . . . . 1 . . Explosive Resupply 1 | . . . . . . . . . . . . . . . . . . . . . . . . . . . . . . . 1 Trap Resupply 1 | . . . . . . . . . . . . . . . . . . . . . . . . . . . . . 1 . . Defense Resupply 2 | . . . . . . . . . . . . . . 1 . . . . 1 . . . . . . . . . . . . Zionite Resupply 1 | . . . . . . . . . . . . . . . . . . . . . . . . . . . . . . . 1 Total Orders 178 | . . . . . . . . 1 37 . . . . 34 2 . . . 12 . . . . 11 1 19 . 13 32 1 15 STAY 32 | . . . . . . . . . 7 . . . . 2 1 . . . 1 . . . . 1 . 11 . 5 2 1 1 ROAM 7 | . . . . . . . . . . . . . . 2 . . . . . . . . . . . 5 . . . . . FOLLOW 6 | . . . . . . . . . . . . . . 1 . . . . . . . . . . . 3 . 1 1 . . DROP 4 | . . . . . . . . . . . . . . . 1 . . . . . . . . . . . . . 2 . 1 EXPLORE 57 | . . . . . . . . 1 14 . . . . 13 . . . . 3 . . . . 4 . . . 3 12 . 7 RETURN 72 | . . . . . . . . . 16 . . . . 16 . . . . 8 . . . . 6 1 . . 4 15 . 6 Ally Attacks 591 | . . 15 . . . . . 82 . . . . 17 62 24 9 . 1 58 . . . . 22 84 47 44 40 74 12 . Total Damage 20268 | . . 168 . . . . . 922 . . . . 409 1994 743 425 . 41 1133 . . . . 970 2745 1857 1755 1847 4420 839 . Kills 121 | . . 1 . . . . . 7 . . . . . 19 11 5 . 1 8 . . . . 11 11 9 4 8 24 2 . Allies Corrupted 7 | . . . . . . . . . . . . . . . . . . . . . . . . . 1 . . 1 4 1 . Allies Melted 2 | . . . . . . . . 1 . . . . . . . . . . . . . 1 . . . . . . . . . Intel | -11 -10 -10 -9 -9 -9 -8 -8 -8 -7 -7 -7 -7 -6 -6 -6 -6 -6 -5 -5 -5 -5 -5 -4 -4 -4 -4 -4 -4 -3 -3 -2 ------- Run | Yrd Mat Min Mat Min Exi Min Mat Sto Fac Low Low Zio Pro Fac Low Low Dat Pro Fac Upp Upp War Pro Fac Ext Cet Arc Hub Res Tes Res Robot Analysis Total 4 | . 4 . . . . . . . . . . . . . . . . . . . . . . . . . . . . . . Derelict Logs Recovered 18 | . . 2 . 2 . . . . . 2 1 2 1 . 3 2 . 1 . . 2 . . . . . . . . . . Drone Launches 71 | . . . . . . . . 2 15 . . . . 13 . . . . 9 . . . . 6 1 . . 4 16 1 4 Drone Recoveries 65 | . . . . . . . . . 14 . . . . 12 . . . . 9 . . . . 6 1 . . 4 15 . 4 Zionite Intel Received 13 | . . . . . . . . . . . . . . 2 . . . . 3 . . . . 2 . . . . . 5 1 Main Access 2 | . . . . . . . . . . . . . . . . . . . . . . . . 1 . . . . . . 1 Emergency Access 1 | . . . . . . . . . . . . . . . . . . . 1 . . . . . . . . . . . . Prototype Stockpiles 2 | . . . . . . . . . . . . . . . . . . . 1 . . . . . . . . . . 1 . Component Schematics 2 | . . . . . . . . . . . . . . . . . . . 1 . . . . . . . . . . 1 . Prototype Schematics 1 | . . . . . . . . . . . . . . . . . . . . . . . . . . . . . . 1 . Unaware Analyses 1 | . . . . . . . . . . . . . . 1 . . . . . . . . . . . . . . . . . Active Terminals 2 | . . . . . . . . . . . . . . 1 . . . . . . . . . . . . . . . 1 . Active Garrisons 2 | . . . . . . . . . . . . . . . . . . . . . . . . 1 . . . . . 1 . Exploration | -11 -10 -10 -9 -9 -9 -8 -8 -8 -7 -7 -7 -7 -6 -6 -6 -6 -6 -5 -5 -5 -5 -5 -4 -4 -4 -4 -4 -4 -3 -3 -2 ------------- Run | Yrd Mat Min Mat Min Exi Min Mat Sto Fac Low Low Zio Pro Fac Low Low Dat Pro Fac Upp Upp War Pro Fac Ext Cet Arc Hub Res Tes Res Turns Passed 32907 | 149 1382 818 1670 1000 440 280 2460 1210 1959 1407 1224 1343 457 1550 1525 955 100 870 1914 1061 1035 1055 855 980 1000 450 200 265 1147 838 1308 Spaces Moved 18643 | 78 730 468 756 481 227 133 1032 421 1103 891 680 912 281 914 1142 760 79 567 1090 746 625 706 470 682 487 209 82 150 628 384 729 Core 26 | 4 . . . . . . . . . . . . . . . . . . . . . . . . . . . . . . 22 Treads 904 | . 114 . 741 . . . . . . . . . . . . . . . . . . . . . . . . . . . 49 Legs 16856 | 74 233 . 9 481 227 133 1032 421 1103 891 680 912 281 914 1142 760 79 567 1090 746 625 706 470 682 487 209 82 150 628 384 658 Wheels 857 | . 383 468 6 . . . . . . . . . . . . . . . . . . . . . . . . . . . . Hover . | . . . . . . . . . . . . . . . . . . . . . . . . . . . . . . . . Flight . | . . . . . . . . . . . . . . . . . . . . . . . . . . . . . . . . Fastest Speed 50 | 50 120 145 145 190 190 190 190 190 120 126 126 133 133 122 117 120 120 120 115 117 117 107 110 107 107 115 115 115 102 105 50 Average Speed 138 | 116 157 154 164 190 190 191 192 190 131 143 169 142 148 126 120 120 120 120 125 118 146 126 110 107 113 115 115 115 112 111 115 Slowest Speed 240 | 120 240 155 240 190 190 193 193 193 196 196 196 196 203 130 122 120 120 120 200 194 194 189 110 110 180 115 115 115 185 189 225 Overloaded Moves . | . . . . . . . . . . . . . . . . . . . . . . . . . . . . . . . . Propulsion Burnouts . | . . . . . . . . . . . . . . . . . . . . . . . . . . . . . . . . Robots Hopped . | . . . . . . . . . . . . . . . . . . . . . . . . . . . . . . . . Cave-ins Triggered 1 | . . . . . . . . . . . . . . . . . . . . . . . . . . . . . . 1 . Exploration Rate (%) 59 | 4 87 87 90 89 60 40 72 80 38 88 73 89 48 32 97 77 68 65 30 54 59 80 65 20 61 56 75 20 33 51 29 Regions Visited 31 Branch Regions 22 Pre-discovered Areas 10 | . . . . 2 1 . 2 . . . . 2 . . 1 . 1 . . . 1 . . . . . . . . . . Known Exits Taken 27 | . 1 1 . . . 1 1 1 1 1 1 1 1 1 1 1 1 1 1 1 1 1 1 1 1 1 1 1 1 1 . Unknown Exits Taken 4 | 1 . . 1 1 1 . . . . . . . . . . . . . . . . . . . . . . . . . . Scrap Searched 20 | . . 1 . 1 . 2 . . . 1 2 4 2 . 2 2 . . . . 2 . 1 . . . . . . . . Spaces Dug 297 | . 2 8 16 12 . . 7 3 20 25 1 . . 6 6 2 . . 22 13 8 5 16 8 36 . . 1 57 19 4 Terrain Destroyed 1230 | . 50 26 50 27 . . 7 80 22 69 1 . 33 8 13 10 . 31 107 34 30 5 58 23 43 1 . 169 135 107 91 Melee 42 | . . . . . . . 7 3 16 9 1 . . 6 . . . . . . . . . . . . . . . . . Projectile 258 | . 2 . 2 . . . . 1 6 9 . . . 2 13 10 . 11 35 34 18 5 9 17 17 1 . 2 27 25 12 AOE 930 | . 48 26 48 27 . . . 76 . 51 . . 33 . . . . 20 72 . 12 . 49 6 26 . . 167 108 82 79 Terrain Rammed . | . . . . . . . . . . . . . . . . . . . . . . . . . . . . . . . . Walls Destroyed . | . . . . . . . . . . . . . . . . . . . . . . . . . . . . . . . . Machines Disabled . | . . . . . . . . . . . . . . . . . . . . . . . . . . . . . . . . Actions | -11 -10 -10 -9 -9 -9 -8 -8 -8 -7 -7 -7 -7 -6 -6 -6 -6 -6 -5 -5 -5 -5 -5 -4 -4 -4 -4 -4 -4 -3 -3 -2 --------- Run | Yrd Mat Min Mat Min Exi Min Mat Sto Fac Low Low Zio Pro Fac Low Low Dat Pro Fac Upp Upp War Pro Fac Ext Cet Arc Hub Res Tes Res Total 23755 | 116 862 533 1024 537 237 152 1345 651 1418 986 738 952 313 1279 1263 778 84 705 1474 852 714 855 775 862 868 407 183 226 923 629 1014 Wait 2665 | 16 47 33 49 15 9 10 155 66 125 56 45 29 19 296 62 1 2 102 208 37 55 82 279 111 123 189 96 57 112 72 107 Move 18612 | 77 729 467 755 480 226 132 1031 420 1102 890 679 911 280 913 1141 759 78 566 1090 745 624 705 469 681 486 208 81 149 627 382 729 Hop . | . . . . . . . . . . . . . . . . . . . . . . . . . . . . . . . . Pick Up 194 | 7 13 6 30 8 . . 17 15 11 2 . 3 2 11 9 . . 1 6 5 1 7 . 6 5 1 . . 9 10 9 Fast Attach 156 | 7 1 . 7 . . 4 10 3 8 . 2 1 . 6 6 . 2 . 6 2 . 16 . 7 8 . 2 2 11 28 17 Attach 61 | . 2 1 4 . . . 5 8 6 1 . . 1 2 1 . . 1 5 . . 2 . 2 . . . . 3 9 8 Detach 9 | . . . . . . . . . . . . . . . . . . . 2 . . . . . . . . . 1 . 6 Swap 440 | . 12 6 48 6 1 3 19 28 50 12 3 4 4 7 17 6 . 7 54 18 9 7 9 13 15 2 . 6 45 13 16 Drop 255 | . 4 4 37 8 1 1 21 11 19 . 1 4 1 14 16 . 2 . 9 3 2 25 . 6 14 1 2 3 14 15 17 Fire 1054 | 9 51 16 90 15 . 2 72 86 76 16 1 . 6 15 11 12 . 27 83 42 23 11 18 36 35 6 2 9 87 97 100 Melee 61 | . . . . . . . 8 4 21 9 7 . . 12 . . . . . . . . . . . . . . . . . Ram 1 | . . . . . . . . . . . . . . . . . . . . . . . . . . . . . . . 1 Kick 32 | . 3 . . 5 . . 7 8 . . . . . 3 . . . 1 1 . . . . . . . . . 2 . 2 Crush 6 | . . . 4 . . . . . . . . . . . . . . . . . . . . . . . . . . . 2 Escape Stasis 11 | . . . . . . . . . . . . . . . . . . . 10 . . . . . . . . . . 1 . Rewire 185 | . . . . . . . . 1 . . . . . . . . . . . . . . . . 182 . . . . 2 . Trap 12 | . . . . . . . . . . . . . . . . . . . . . . . . . . . . . 12 . . Miscellaneous 1 | . . . . . . . . 1 . . . . . . . . . . . . . . . . . . . . . . . Route ------- -11/Scrapyard -10/Materials (discovered 5 exits: *Mat x3 / *Min / Sub) -10/Mines (discovered 3 exits: *Mat x2 / Sub) -9/Materials (discovered 4 exits: *Mat x3 / *Min) -9/Mines (discovered 4 exits: *Mat x2 / *Exi / *Zio) -9/Exiles -8/Mines -8/Materials (discovered 5 exits: *Fac x3 / *Sto x2) -8/Storage (discovered 2 exits: *Fac / Rec) -7/Factory (discovered 4 exits: *Fac x2 / *Low x2) -7/Lower Caves -7/Lower Caves (discovered 2 exits: *Fac / *Zio) -7/Zion -6/Proximity Caves -6/Factory (discovered 5 exits: Fac x3 / *Low x2) -6/Lower Caves -6/Lower Caves (discovered 2 exits: Fac / *Dat) -6/Data Miner -5/Proximity Caves -5/Factory (discovered 6 exits: Fac x4 / *Upp x2) -5/Upper Caves -5/Upper Caves -5/Warlord -4/Proximity Caves -4/Factory (discovered 8 exits: *Res x4 / *Upp x2 / *Ext x2) -4/Extension (discovered 2 exits: *Res / *Cet) -4/Cetus (discovered 2 exits: *Res / *Arc) -4/Archives (discovered 2 exits: *Hub x2) -4/Hub_04(d) -3/Research (discovered 3 exits: *Res / Arm / *Tes) -3/Testing -2/Research (discovered 4 exits: Acc x3 / *Qua) History --------- Turn | Location | Event 2 | -11/Scrapyard | Discovered new exit (range 16) 150 | -11/Scrapyard | Entered Materials 278 | -10/Materials | Discovered new exit (range 16) 317 | -10/Materials | Build established: Mutant 981 | -10/Materials | Discovered new exit (range 13) 1052 | -10/Materials | Discovered new exit (range 15) 1461 | -10/Materials | Learned Materials emergency access door positions 1484 | -10/Materials | Identified exit to Materials 1484 | -10/Materials | Identified exit to Subcaves 1498 | -10/Materials | Identified exit to Mines 1501 | -10/Materials | Learned Materials emergency access door positions 1502 | -10/Materials | Loaded intel: 17 trap records 1507 | -10/Materials | Learned location of 2 exits from Mines 1524 | -10/Materials | Learned Storage stockpile data 1532 | -10/Materials | Entered Mines 1568 | -10/Mines | Assisted by bots powering up and referring to "LRC-V3" 2052 | -10/Mines | Learned 2 Materials zone layouts 2350 | -10/Mines | Entered Materials 2350 | -9/Materials | Evolved 2 slots: Propulsion x1, Utility x1 2351 | -9/Materials | Identified exit to Materials 2814 | -9/Materials | Discovered exit to Materials (range 16) 3001 | -9/Materials | Build established: Scavenger-Mutant 3168 | -9/Materials | Destroyed 13 combat bots 3715 | -9/Materials | Discovered exit to Materials (range 16) 3920 | -9/Materials | Discovered new exit (range 13) 4020 | -9/Materials | Entered Mines 4070 | -9/Mines | Learned 2 Materials zone layouts 4084 | -9/Mines | Received a Rocket Launcher from a helpful Derelict 4156 | -9/Mines | A Derelict revealed a hidden shortcut to a safe place 4214 | -9/Mines | A weapon hastily lodged in a ceiling crevice suddenly fell to the ground 4273 | -9/Mines | Met a Derelict who couldn't figure out how to use a Trap Extractor 4303 | -9/Mines | Build established: Mutant 4390 | -9/Mines | Learned location of Storage (-8) 4450 | -9/Mines | Deemed a non-threat by the Exiles lab entrance 4450 | -9/Mines | Discovered new exit (range 5) 4614 | -9/Mines | Discovered exit to Materials (range 4) 4697 | -9/Mines | Discovered exit to Materials (range 6) 4729 | -9/Mines | Learned location of Zion (-7) 5020 | -9/Mines | Entered Exiles 5066 | -9/Exiles | Met 8R-AWN 5100 | -9/Exiles | Met EX-HEX 5178 | -9/Exiles | Met EX-DEC 5429 | -9/Exiles | Discovered new exit (range 14) 5460 | -9/Exiles | Entered Mines 5649 | -8/Mines | Discovered exit to Materials (range 7) 5740 | -8/Mines | Entered Materials 5740 | -8/Materials | Evolved 2 slots: Utility x2 6411 | -8/Materials | Discovered new exit (range 10) 6674 | -8/Materials | Discovered new exit (range 7) 7130 | -8/Materials | Lost 3 parts (1p1u1w) 7309 | -8/Materials | Discovered new exit (range 10) 7367 | -8/Materials | Identified exit to Storage 7714 | -8/Materials | Learned Factory emergency access door positions 7788 | -8/Materials | Learned Storage terminal intel 7904 | -8/Materials | Identified exit to Factory 7980 | -8/Materials | Learned 2 Storage zone layouts 8004 | -8/Materials | Learned location of Extension (-4) 8076 | -8/Materials | Learned Factory trap positions 8127 | -8/Materials | Learned location of 1 exit from Extension 8186 | -8/Materials | Learned 2 Lower Caves zone layouts 8200 | -8/Materials | Entered Storage 8201 | -8/Storage | Identified exit to Recycling 8204 | -8/Storage | Loaded intel: 13 terminal locations 8593 | -8/Storage | Core integrity fell below 50% 8692 | -8/Storage | Lost 5 parts (1p2n1u1w) 8732 | -8/Storage | Destroyed 9 combat bots 8963 | -8/Storage | Assisted by bots powering up and referring to "LRC-V3" 9084 | -8/Storage | Discovered exit to Factory (range 35) 9086 | -8/Storage | Lost 7 allies 9180 | -8/Storage | Repaired Broken Imp. Carbon-fiber Leg 9226 | -8/Storage | Repaired Imp. Carbon-fiber Leg 9363 | -8/Storage | Met a pair of Derelict thieves 9410 | -8/Storage | Entered Factory 9410 | -7/Factory | Evolved 2 slots: Power x1, Utility x1 9411 | -7/Factory | Identified exit to Lower Caves 9412 | -7/Factory | Loaded intel: 88 trap records 9554 | -7/Factory | Discovered new exit (range 37) 10021 | -7/Factory | Fabricated Imp. Titanium Leg (x2) 10698 | -7/Factory | Found Powered Armor 11037 | -7/Factory | Garrison activated, responded to threat 11048 | -7/Factory | Fabricated Adv. Shield Generator (x2) 11083 | -7/Factory | Learned Extension trap positions 11150 | -7/Factory | Identified exit to Factory 11254 | -7/Factory | Learned Extension trap positions 11322 | -7/Factory | Learned location of 2 exits from Factory 11369 | -7/Factory | Entered Lower Caves 11675 | -7/Lower Caves | Build established: Skirmisher 11886 | -7/Lower Caves | Learned location of 1 exit from Factory 11891 | -7/Lower Caves | Learned 4 Factory zone layouts 12570 | -7/Lower Caves | Discovered new exit (range 10) 12630 | -7/Lower Caves | Build established: Assassin 12771 | -7/Lower Caves | Identified exit to Lower Caves 12776 | -7/Lower Caves | Entered another Lower Caves area 13447 | -7/Lower Caves | Build established: Scavenger-Assassin 13510 | -7/Lower Caves | Discovered new exit (range 14) 13533 | -7/Lower Caves | Identified exit to Zion 13649 | -7/Lower Caves | Learned Factory stockpile data 14000 | -7/Lower Caves | Entered Zion 14097 | -7/Zion | Given the Hacking Drone Bay 14099 | -7/Zion | Found Prototype Device 14149 | -7/Zion | Discovered new exit (range 15) 14347 | -7/Zion | Learned location of 1 exit from Factory 14356 | -7/Zion | Given A8's code to call for help 14399 | -7/Zion | Build established: Assassin 14443 | -7/Zion | Identified Hacking Drone Bay 14803 | -7/Zion | Received a visual enhancement algorithm 15040 | -7/Zion | Met Imprinter 15064 | -7/Zion | Imprinted 15067 | -7/Zion | Declared Zion's savior 15317 | -7/Zion | Identified exit to Proximity Caves 15343 | -7/Zion | Entered Proximity Caves 15343 | -6/Proximity Caves | Accompanied by 4 allies 15366 | -6/Proximity Caves | Learned location of 1 exit from Factory 15390 | -6/Proximity Caves | Spotted B-75 Beast 15421 | -6/Proximity Caves | Destroyed B-75 Beast 15685 | -6/Proximity Caves | Build established: Mutant 15800 | -6/Proximity Caves | Entered Factory 15800 | -6/Factory | Evolved 2 slots: Propulsion x1, Utility x1 15801 | -6/Factory | Identified exit to Factory 15801 | -6/Factory | Identified exit to Lower Caves 15828 | -6/Factory | Lost 3 allies 16081 | -6/Factory | Zion hero teleported in (AD-0RF) 16495 | -6/Factory | Retrieved Zion intel report: Active Terminals 16496 | -6/Factory | Zion Heavy squad teleported in 16978 | -6/Factory | Retrieved Zion intel report: Unaware Analyses 16979 | -6/Factory | Zion Light squad teleported in 17047 | -6/Factory | Found Prototype Protection 17047 | -6/Factory | Identified Zio. Weapon Casing 17128 | -6/Factory | Zion Defense Resupply teleported in 17215 | -6/Factory | Repaired Cld. Pulse Rifle 17346 | -6/Factory | Terminal network hard line cut 17350 | -6/Factory | Entered Lower Caves 17350 | -6/Lower Caves | Accompanied by 6 allies (AD-0RF) 17381 | -6/Lower Caves | Encountered a Warlord checkpoint 17878 | -6/Lower Caves | Spotted B-75 Beast 17923 | -6/Lower Caves | Allies destroyed B-75 Beast 17938 | -6/Lower Caves | Lost 4 allies 17966 | -6/Lower Caves | Found Zio. Weapon Casing 17984 | -6/Lower Caves | Found Zio. Weapon Casing 18200 | -6/Lower Caves | Build established: Messiah-Mutant 18350 | -6/Lower Caves | Discovered new exit (range 2) 18351 | -6/Lower Caves | Identified exit to Lower Caves 18553 | -6/Lower Caves | Learned Factory security intel 18875 | -6/Lower Caves | Entered another Lower Caves area 18875 | -6/Lower Caves | Accompanied by 1 ally (AD-0RF) 18985 | -6/Lower Caves | Spotted B-75 Beast 18986 | -6/Lower Caves | Encountered a Warlord checkpoint 18997 | -6/Lower Caves | Allies destroyed B-75 Beast 19178 | -6/Lower Caves | Attracted the attention of an 0b10 checkpoint 19605 | -6/Lower Caves | Learned Factory terminal intel 19613 | -6/Lower Caves | Discovered new exit (range 8) 19621 | -6/Lower Caves | Identified exit to Data Miner 19830 | -6/Lower Caves | Entered Data Miner 19830 | -6/Data Miner | Accompanied by 1 ally (AD-0RF) 19830 | -6/Data Miner | Discovered new exit (range 6) 19835 | -6/Data Miner | Identified exit to Proximity Caves 19854 | -6/Data Miner | Met Data Miner 19877 | -6/Data Miner | Learned location of Section 7 (-2) 19877 | -6/Data Miner | Acquired the access code to Warlord's prototype stash 19894 | -6/Data Miner | Received God Mode back door access code from Data Miner 19930 | -6/Data Miner | Entered Proximity Caves 19930 | -5/Proximity Caves | Accompanied by 1 ally (AD-0RF) 20109 | -5/Proximity Caves | Spotter reported a threat 20309 | -5/Proximity Caves | Spotter reported a threat 20402 | -5/Proximity Caves | Spotter reported a threat 20659 | -5/Proximity Caves | Learned Factory stockpile data 20692 | -5/Proximity Caves | Discovered exit to Factory (range 9) 20800 | -5/Proximity Caves | Entered Factory 20800 | -5/Factory | Evolved 2 slots: Utility x2 20801 | -5/Factory | Identified exit to Upper Caves 20804 | -5/Factory | Loaded intel: 26 terminal locations 20942 | -5/Factory | Retrieved Zion intel report: Emergency Access 20945 | -5/Factory | Zion Light squad teleported in 21100 | -5/Factory | Search patrols dispatched 21412 | -5/Factory | Retrieved Zion intel report: Component Schematics 21422 | -5/Factory | Zion Light squad teleported in 21482 | -5/Factory | Identified exit to Factory 21499 | -5/Factory | Zion Defense Resupply teleported in 21772 | -5/Factory | Cargo convoy interrupted 21924 | -5/Factory | Retrieved Zion intel report: Prototype Stockpiles 22333 | -5/Factory | Terminal network hard line cut 22714 | -5/Factory | Entered Upper Caves 22715 | -5/Upper Caves | Identified exit to Upper Caves 22952 | -5/Upper Caves | Found Alien Artifact 22952 | -5/Upper Caves | Identified Core Expander 22952 | -5/Upper Caves | Installed Core Expander, added new Power slot 23743 | -5/Upper Caves | Attracted the attention of an 0b10 outpost 23775 | -5/Upper Caves | Entered another Upper Caves area 23984 | -5/Upper Caves | Encountered a Warlord checkpoint 24684 | -5/Upper Caves | Learned location of Armory (-3) 24790 | -5/Upper Caves | Discovered new exit (range 8) 24800 | -5/Upper Caves | Identified exit to Warlord 24810 | -5/Upper Caves | Entered Warlord 24852 | -5/Warlord | System corruption cleaned by Quarantine Array 25180 | -5/Warlord | Received a Watcher feed algorithm from an ecstatic Tinkerer 25351 | -5/Warlord | Rebuked by Warlord 25362 | -5/Warlord | Opened Warlord's prototype stash 25376 | -5/Warlord | Warlord's base attacked by MAIN.C 25383 | -5/Warlord | Found Prototype Device 25383 | -5/Warlord | Identified Exp. Phase Shifter 25394 | -5/Warlord | Found Prototype Reactor 25394 | -5/Warlord | Identified Vortex Chain Reactor 25401 | -5/Warlord | Found Prototype Device 25401 | -5/Warlord | Identified System Purifier 25519 | -5/Warlord | Spotted B-86 Titan 25524 | -5/Warlord | Spotted B-75 Beast 25615 | -5/Warlord | P-80 Master assimilated allied J6-1BG(g) 25633 | -5/Warlord | P-80 Master assimilated allied C7-N5E(g) 25671 | -5/Warlord | Lost 5 allies 25726 | -5/Warlord | Warlord forces counterattacked 25744 | -5/Warlord | Spotted B-86 Titan 25751 | -5/Warlord | Spotted Executioner 25788 | -5/Warlord | Found Prototype Processor 25792 | -5/Warlord | Lost 4 allies 25792 | -5/Warlord | Identified Exp. Core Analyzer 25801 | -5/Warlord | Found Exp. Core Analyzer 25806 | -5/Warlord | Found Prototype Processor 25806 | -5/Warlord | Identified Exp. Targeting Computer 25850 | -5/Warlord | Discovered new exit (range 14) 25862 | -5/Warlord | Identified exit to Proximity Caves 25865 | -5/Warlord | Entered Proximity Caves 26103 | -4/Proximity Caves | Spotter reported a threat 26376 | -4/Proximity Caves | Discovered exit to Factory (range 8) 26720 | -4/Proximity Caves | Entered Factory 26720 | -4/Factory | Evolved 2 slots: Utility x2 26721 | -4/Factory | Identified exit to Extension 26793 | -4/Factory | Discovered new exit (range 10) 26835 | -4/Factory | Identified exit to Upper Caves 27164 | -4/Factory | Discovered new exit (range 9) 27173 | -4/Factory | Identified exit to Research 27190 | -4/Factory | Retrieved Zion intel report: Active Garrisons 27233 | -4/Factory | Retrieved Zion intel report: Main Access 27234 | -4/Factory | Zion Hacker squad teleported in 27383 | -4/Factory | Zion hero teleported in (1C-UTU) 27617 | -4/Factory | Spotted B-86 Titan 27626 | -4/Factory | Allies destroyed B-86 Titan 27700 | -4/Factory | Entered Extension 27700 | -4/Extension | Accompanied by 2 allies (1C-UTU) 27702 | -4/Extension | Loaded intel: 25 trap records 27738 | -4/Extension | Rescued a captive Derelict 27762 | -4/Extension | Rescued a captive Derelict 27946 | -4/Extension | Lost 3 allies 27949 | -4/Extension | Found Prototype Slashing Weapon 27949 | -4/Extension | Identified 1C-UTU's Sword "Choppy" 28134 | -4/Extension | Identified exit to Cetus 28239 | -4/Extension | Zion Recon squad teleported in 28429 | -4/Extension | Rescued a captive Derelict 28429 | -4/Extension | Rescued a captive Derelict 28522 | -4/Extension | Lost 4 allies 28601 | -4/Extension | Rescued A7 28700 | -4/Extension | Entered Cetus 28700 | -4/Cetus | Accompanied by 10 allies (A7) 28705 | -4/Cetus | Acquired a Cetus Manufacturing Module code from A7 28745 | -4/Cetus | Spotted Cetus Guard 28745 | -4/Cetus | Spotted Cetus Guard 28760 | -4/Cetus | Spotted Cetus Guard 28767 | -4/Cetus | Allies destroyed Cetus Guard 28771 | -4/Cetus | Allies destroyed Cetus Guard 28782 | -4/Cetus | Allies destroyed Cetus Guard 28796 | -4/Cetus | Lost 3 allies 28830 | -4/Cetus | Started Cetus Manufacturing Module 28855 | -4/Cetus | Manufactured an Enhanced Grunt 28880 | -4/Cetus | Manufactured an Enhanced Grunt 28905 | -4/Cetus | Manufactured an Enhanced Grunt 28930 | -4/Cetus | Manufactured an Enhanced Grunt 28955 | -4/Cetus | Manufactured an Enhanced Grunt 28955 | -4/Cetus | Discovered new exit (range 15) 29021 | -4/Cetus | Spotted Cetus Guard 29021 | -4/Cetus | Spotted Cetus Guard 29039 | -4/Cetus | Allies destroyed Cetus Guard 29044 | -4/Cetus | Spotted Cetus Guard 29045 | -4/Cetus | Destroyed Cetus Guard 29077 | -4/Cetus | Discovered exit to Research (range 16) 29083 | -4/Cetus | Scared off Revision 17 29125 | -4/Cetus | Identified exit to Archives 29150 | -4/Cetus | Entered Archives 29150 | -4/Archives | Accompanied by 6 allies (A7) 29222 | -4/Archives | Discovered new exit (range 15) 29232 | -4/Archives | Discovered new exit (range 16) 29243 | -4/Archives | Unable to access archive contents 29255 | -4/Archives | Unable to access archive contents 29306 | -4/Archives | Identified exit to Hub_04(d) 29350 | -4/Archives | Entered Hub_04(d) 29350 | -4/Hub_04(d) | Accompanied by 5 allies 29356 | -4/Hub_04(d) | Discovered exit to Research (range 27) 29373 | -4/Hub_04(d) | Zion Heavy squad teleported in 29599 | -4/Hub_04(d) | Network Hub disabled 29600 | -4/Hub_04(d) | First assault squad dispatched 29615 | -4/Hub_04(d) | Entered Research 29615 | -3/Research | Accompanied by 3 allies 29615 | -3/Research | Evolved 2 slots: Utility x2 29616 | -3/Research | Identified exit to Armory 29700 | -3/Research | Lost 3 allies 29865 | -3/Research | First assault squad dispatched 30030 | -3/Research | Destroyed 9 combat bots 30182 | -3/Research | Zion Heavy squad teleported in 30277 | -3/Research | Build established: Scavenger-Mutant 30281 | -3/Research | Lost 3 allies 30294 | -3/Research | Zion Thermal Resupply teleported in 30295 | -3/Research | Enhanced Grunt warped into view, answering call for help 30296 | -3/Research | Enhanced Grunt warped into view, answering call for help 30367 | -3/Research | Zion Trap Resupply teleported in 30413 | -3/Research | Zion Demo squad teleported in 30437 | -3/Research | Zion Heavy squad teleported in 30547 | -3/Research | Garrison activated, responded to threat 30605 | -3/Research | Zion Fire squad teleported in 30657 | -3/Research | Discovered new exit (range 11) 30669 | -3/Research | Identified exit to Research 30675 | -3/Research | Discovered new exit (range 43) 30761 | -3/Research | Identified exit to Testing 30762 | -3/Research | Entered Testing 30762 | -3/Testing | Accompanied by 1 ally 30765 | -3/Testing | Spotted PG-JAZUGSFIHR 30791 | -3/Testing | Allies destroyed PG-JAZUGSFIHR 30957 | -3/Testing | Retrieved Zion intel report: Prototype Stockpiles 31005 | -3/Testing | System corruption reached 10% 31012 | -3/Testing | Retrieved Zion intel report: Active Garrisons 31057 | -3/Testing | Retrieved Zion intel report: Prototype Schematics 31060 | -3/Testing | First assault squad dispatched 31106 | -3/Testing | Retrieved Zion intel report: Component Schematics 31111 | -3/Testing | Retrieved Zion intel report: Active Terminals 31164 | -3/Testing | Found Hvy. Reflective Plating 31219 | -3/Testing | Destroyed 11 combat bots 31254 | -3/Testing | Lost 11 parts (2p7u2w) 31295 | -3/Testing | Crushed by falling debris 31429 | -3/Testing | Lost 10 parts (1p3n5u1w) 31463 | -3/Testing | Found Prototype Protection 31463 | -3/Testing | Identified SHELL Armor 31536 | -3/Testing | Lost 3 parts (1n2u) 31569 | -3/Testing | Discovered exit to Research (range 11) 31600 | -3/Testing | Entered Research 31600 | -2/Research | Evolved 2 slots: Utility x1, Weapon x1 31850 | -2/Research | First assault squad dispatched 31888 | -2/Research | Discovered new exit (range 9) 31910 | -2/Research | Identified exit to Quarantine 31957 | -2/Research | Build established: Scavenger-Gunner 32201 | -2/Research | Zion Zionite Resupply teleported in 32344 | -2/Research | System corruption reached 10% 32399 | -2/Research | Spotted B-90 Cyclops 32583 | -2/Research | Retrieved Zion intel report: Main Access 32583 | -2/Research | Identified exit to Access 32584 | -2/Research | Zion Explosive Resupply teleported in 32592 | -2/Research | Found Prototype Launcher 32592 | -2/Research | Identified Gui. Missile Launcher 32640 | -2/Research | P-80 Master assimilated allied 6F-NO3(A) 32770 | -2/Research | Garrison activated, responded to threat 32821 | -2/Research | Destroyed 8 combat bots 32823 | -2/Research | Spotted B-90 Cyclops 32884 | -2/Research | Core integrity fell below 50% 32899 | -2/Research | Core integrity fell below 20% 32908 | -2/Research | Destroyed by S-43 Plague with Heavy Machine Gun Last Messages --------------- 32892_ Dropped Hvy. Laser. 32892_ Penetrated by Slug. 32893_ Dropped Zio. Composite Leg II. 32893_ U-05 Engineer builds a Door. 32893_ Penetrated by Slug. 32893_ Dropped Enh. Biometal Leg. 32895_ Penetrated by Slug. 32897_ Slug penetrates Wall. 32898_ Penetrated by Slug. 32898_ Antimissile System destroyed. 32901_ Slug penetrates B-74 Champion. 32901_ Slug penetrates L-61 Swordsman. 32901_ Penetrated by Slug. 32902_ Detecting system override signal. 32904_ O-24 Administrator: "IFF HANDSHAKE FAILED. SECURING TERMINAL." 32905_ ALERT: Suspicious activity at Terminal R007. Dispatching Investigation squad. 32905_ O-24 Administrator resets terminal and reports anomaly. 32905_ O-24 Administrator locks terminal. 32907_ Acquired Smartbomb Launcher. Map ----- +----------------------------------------------------+ | | | | | | | | | | | | | | | | | ?????????????????????????????????????????????????? | | ?????????????????????????????????????????????????? | | ?????????????????????????????????????????????????? | | ?????????????????????????????????????????????????? | | ?????????????????????????????????????????????????? | | ????????????????????##?###########???????????????? | | ????????????????????# ? #???????????????? | | ????????????????????# #???????????????? | | ????????????????????# """ """ #???????????????? | | ????????????????????# """ """ #???????????????? | | ????????????????????# """ """ #???????????????? | | ????????????????????# +???????????????? | | ????????????????????# #???????????????? | | ????????????????????# o #???????????????? | | ????????????????????# ""T"" #???????????????? | | ????????????????????# """"" s #???????????????? | | ????????????????????# s s #???????????????? | | ????????????????????# @s s #???????????????? | | ????????????????????#########/####???????????????? | | ?????????????##########?????# #??????????????????? | | ?????????????# ?????# #??????????????????? | | ?????????????# ????# #??????????????????? | | ?????????????# ???# #??????????????????? | | ?????????????# ### ################???? | | ?????????????# ] # ?? | | ?????????????# " ?? | | ?????????????# # ?? | | ?????????????#= + ??? | | ?????????????# # ######/#########??? | | ?????????????# ??# #?????? ?????????? | | ?????????????# ????# #???????? ???????? | | ?????????????# ??????# #?????????" ??????? | | ?????????????######???????# #???????????#?????? | | ??????????????????????????#= #?????????????????? | | ?????????????????###??????#[ #?????????????????? | | ?????????????????#! ????#= #?????????????????? | | ?????????????????# ??# #?????????????????? | | ?????????????????# # #?????????????????? | | ????????????????# + #?????????????????? | | ?????????????????#=== # #?????????????????? | | ?????????????????#=== # #?????????????????? | | ?????????????????#== ?# #?????????????????? | +----------------------------------------------------+ Best States ------------- Heat Dissipation 125 Energy Generation 72 Energy Capacity 925 Matter Stores 300 Matter Capacity 300 Sight Range 20 Robot Scan Range 16 Terrain Scan Density 10 Jamming Range 12 Power Amplification 30 Corruption Containment 8 Armor Coverage 1300 Resistance: KI 30 Resistance: TH 25 Resistance: EM 25 Utility Shielding 66 Weapon Shielding 100 Phase Shifting 20 Evasion (%) 75 Targeting Accuracy 12 Target Analysis 8 Core Analysis 8 Recoil Reduction 4 Particle Charging 20 Defensive Hacking 10 Item Schematics ----------------- Imp. Titanium Leg | -8/Storage | Hacked Transmission Jammer | -7/Factory | Hacked Dynamic Insulation System | -7/Factory | Hacked Adv. Shield Generator | -7/Factory | Hacked Spear | -7/Zion | Archive Adv. Melee Analysis Suite | -7/Zion | Archive Hvy. Missile Launcher | -7/Zion | Archive Matter Compressor | -7/Zion | Archive Med. Insulated Plating | -7/Zion | Archive Coil Gun | -7/Zion | Archive Field Propulsion Drive | -7/Zion | Archive Arm. Medium Treads | -7/Zion | Archive Imp. Field Recycling Unit | -7/Zion | Archive Magnetic Acceleration Cannon | -7/Zion | Archive Adv. Sensor Array | -7/Zion | Archive Recalibrator | -7/Zion | Archive Imp. System Restoration Module | -7/Zion | Archive Combat Drone Bay | -6/Data Miner | Free Lgt. Regenerative Plating | -6/Data Miner | Free Cld. Gravmag System | -6/Data Miner | Free Prc. Energy Filter | -6/Data Miner | Free Plasma Sword | -6/Data Miner | Free Imp. Gyrokinetic Inverter | -6/Data Miner | Free Imp. Armor Integrity Analyzer | -6/Data Miner | Free Force Lance | -6/Data Miner | Free Mass Driver | -6/Data Miner | Free Adv. Medium Treads | -6/Data Miner | Free Power Shielding | -5/Factory | Z-intel Phase Shifter | -5/Factory | Z-intel Adv. Weight Redist. System | -5/Factory | Z-intel Imp. Plasma Cutter | -5/Factory | Z-intel Hvy. Shock Bomb Launcher | -5/Factory | Z-intel Gravmag Array | -5/Factory | Z-intel Phase Cannon | -5/Factory | Z-intel Fusion Compressor | -5/Factory | Z-intel Hcp. Storage Unit | -5/Factory | Z-intel Linear Gravjet | -5/Factory | Z-intel Lrn. Proton Cannon | -5/Factory | Z-intel Imp. Recalibrator | -5/Factory | Z-intel Force Field | -5/Factory | Z-intel Exp. Cooling System | -3/Testing | Archive Imp. Diametric Drive | -3/Testing | Archive Hvy. Tesla Rifle | -3/Testing | Archive Adv. Plasma Rifle | -3/Testing | Z-intel Exp. ECM Suite | -3/Testing | Z-intel Molecular Scythe | -3/Testing | Z-intel Centrium Greatsword | -3/Testing | Z-intel Imp. Particle Accelerator | -3/Testing | Z-intel Adv. KE Penetrator | -3/Testing | Z-intel Tiamat Missile Launcher | -3/Testing | Z-intel Ionic Axe | -3/Testing | Z-intel Cld. Antigrav System | -3/Testing | Z-intel Adv. EM Disruption Field | -3/Testing | Z-intel Adv. Transmission Jammer | -3/Testing | Z-intel Actuator Array | -3/Testing | Z-intel Imp. Datajack | -3/Testing | Z-intel Centrium Wheel | -3/Testing | Z-intel Lrn. Tractor Beam | -3/Testing | Z-intel Particle Reactor | -3/Testing | Z-intel Focal Shield | -3/Testing | Z-intel Gyrokinetic Inverter | -3/Testing | Z-intel Gamma Bomb Array | -3/Testing | Z-intel Quantum Rifle | -3/Testing | Z-intel Impulse Thruster | -3/Testing | Z-intel System Shield | -3/Testing | Z-intel Med. Storage Unit | -3/Testing | Z-intel Adv. Component Analysis Suite | -3/Testing | Z-intel Adv. Weapon Cycler | -3/Testing | Z-intel Imp. Remote Datajack | -3/Testing | Z-intel Robot Schematics ------------------ M-14 Sweeper | -7/Zion | Archive G-47 Trooper | -7/Zion | Archive W-25 Informer | -7/Zion | Archive G-50 Soldier | -6/Data Miner | Free S-27 Virus | -6/Data Miner | Free E-15 Imp | -6/Data Miner | Free L-41 Fighter | -6/Data Miner | Free G-67 Veteran | -6/Data Miner | Free L-61 Swordsman | -6/Data Miner | Free H-66 Slayer | -6/Data Miner | Free H-77 Assassin | -3/Testing | Archive Fabricated ------------ Imp. Titanium Leg | x2 | -7/Factory Adv. Shield Generator | x2 | -7/Factory Alien Tech Used ----------------- Core Expander Achievements -------------- None Challenges ------------ None Game ------ Seed MatterPlatingFalx Manual? 0 Play Time 07:06:48 Cumulative 196.9 hours Start 2024.08.19 @ 14:59:11 End 2024.08.22 @ 19:16:35 Sessions 19 Manual Loads 0 Difficulty Rogue Special Mode None Game No. 97 Rogue 97 Adventurer 0 Explorer 0 Win Type - Total 6 Types 4/0/1/1/0/0/0/0/0 Lore% 69 Gallery% 67 Achievement% 60 Wizard Run 0 Options --------- Layout 0 ASCII 0 Keyboard 0 Movement Numpad Keybinds 0 Fullscreen 2 Font 18/SmallcapsGlow Map View 76x50 Zoom Use 0% Tactical HUD 1 Map Filters NONE Filters NONE Steam 1 RUN: 92445f29-73a2-488a-92cf-e50f10fbe8df